{"text_format":"1","workbook":"xlsx","n_sheets":7,"sheets":["Überblick","24-Februar-2020_GER","25-Februar-2020_GER","26-Februar-2020_GER","27-Februar-2020_GER","CIQ_LinkingNames","28-Ferbuar-2020_GER"],"not_rendered":{"charts":0,"images":0,"macros":1,"external_links":0,"defined_names":272,"comments":0,"pivot_tables":0},"unopened":[],"bounds":{"document_bytes":16777216,"sheet_cells":100000,"rows_first":2000,"rows_last":500,"rows_between":2000,"halvings":0,"cell_chars":16384,"cell_head_chars":4096},"cells_cut":0,"cells_raw":0,"read":"whole","date_system":"1900"}

{"sheet":"Überblick","index":0,"n_rows":14,"n_cols":12,"rows_kept":14,"cut":false,"hidden":false,"merged":[]}
["Fresenius Medical Care AG & Co. KGaA Aktienrückkauf 2019"]
[]
[null,"Datum",null,"2020-02-28",9,null,"",null,null,null,1,4]
[]
[null,"Gesamte Anzahl zurückgekaufte Aktien:",null,5398,"Aktien"]
[]
[null,"Insgesamt zurückgekauftes Volumen (EUR)",null,381040.87945999997]
[]
[null,"Handels-datum","Handelszeiten (CET)","Anzahl zurückgekaufte Aktien","Durchschnittspreis\nin € je Aktie","Rückkaufsvolumen in €","Gesamtes Rückkaufs-volumen in €"]
[9,"2020-02-24","09:00:00 - 17:30:00",0,0,0,0]
[9,"2020-02-25","09:00:00 - 17:30:00",0,0,0,0]
[9,"2020-02-26","09:00:00 - 17:30:00",0,0,0,0]
[9,"2020-02-27","09:00:00 - 17:30:00",5398,70.589269999999999,381040.87945999997,381040.87945999997]
[9,"2020-02-28","09:00:00 - 17:30:00",0,0,0,381040.87945999997]

{"sheet":"24-Februar-2020_GER","index":1,"n_rows":1165,"n_cols":8,"rows_kept":1165,"cut":false,"hidden":false,"merged":[]}
["Fresenius Medical Care AG & Co. KGaA Aktienrückkauf 2019"]
[]
[null,null,"Handelsdatum","Anzahl zurückgekaufte Aktien","Durchschnittspreis\nin € je Aktie","Rückkaufsvolumen \nin €"]
[null,null,"2020-02-24",{"$f":"SUM(E7:E2000)","v":0},0,{"$f":"SUMPRODUCT(E7:E5000,F7:F5000)","v":0}]
[]
[null,"Handelsdatum","Handelszeit","Kauf / Verkauf","Nominale","Ausführungspreis","Währung","Handelsplatz"]
[null,{"$f":"C4","v":"2020-02-24"},null,{"$f":"IF(C7=\"\",\"\",\"Buy\")","v":""}]
[null,null,null,{"$f":"IF(C8=\"\",\"\",\"Buy\")","v":""}]
[null,null,null,""]
[null,null,null,""]
[null,null,null,""]
[null,null,null,""]
[null,null,null,""]
[null,null,null,""]
[null,null,null,""]
[null,null,null,""]
[null,null,null,""]
[null,null,null,""]
[null,null,null,""]
[null,null,null,""]
[null,null,null,""]
[null,null,null,""]
[null,null,null,""]
[null,null,null,""]
[null,null,null,""]
[null,null,null,""]
[null,null,null,""]
[null,null,null,""]
[null,null,null,""]
[null,null,null,""]
[null,null,null,""]
[null,null,null,""]
[null,null,null,""]
[null,null,null,""]
[null,null,null,""]
[null,null,null,""]
[null,null,null,""]
[null,null,null,""]
[null,null,null,""]
[null,null,null,""]
[null,null,null,""]
[null,null,null,""]
[null,null,null,""]
[null,null,null,""]
[null,null,null,""]
[null,null,null,""]
[null,null,null,""]
[null,null,null,""]
[null,null,null,""]
[null,null,null,""]
[null,null,null,""]
[null,null,null,""]
[null,null,null,""]
[null,null,null,""]
[null,null,null,""]
[null,null,null,""]
[null,null,null,""]
[null,null,null,""]
[null,null,null,""]
[null,null,null,""]
[null,null,null,""]
[null,null,null,""]
[null,null,null,""]
[null,null,null,""]
[null,null,null,""]
[null,null,null,""]
[null,null,null,""]
[null,null,null,""]
[null,null,null,""]
[null,null,null,""]
[null,null,null,""]
[null,null,null,{"$f":"IF(C72=\"\",\"\",\"Buy\")","v":""}]
[null,null,null,""]
[null,null,null,""]
[null,null,null,""]
[null,null,null,""]
[null,null,null,""]
[null,null,null,""]
[null,null,null,""]
[null,null,null,""]
[null,null,null,""]
[null,null,null,""]
[null,null,null,""]
[null,null,null,""]
[null,null,null,""]
[null,null,null,""]
[null,null,null,""]
[null,null,null,""]
[null,null,null,""]
[null,null,null,""]
[null,null,null,""]
[null,null,null,""]
[null,null,null,""]
[null,null,null,""]
[null,null,null,""]
[null,null,null,""]
[null,null,null,""]
[null,null,null,""]
[null,null,null,""]
[null,null,null,""]
[null,null,null,""]
[null,null,null,""]
[null,null,null,""]
[null,null,null,""]
[null,null,null,""]
[null,null,null,""]
[null,null,null,""]
[null,null,null,""]
[null,null,null,""]
[null,null,null,""]
[null,null,null,""]
[null,null,null,""]
[null,null,null,""]
[null,null,null,""]
[null,null,null,""]
[null,null,null,""]
[null,null,null,""]
[null,null,null,""]
[null,null,null,""]
[null,null,null,""]
[null,null,null,""]
[null,null,null,""]
[null,null,null,""]
[null,null,null,""]
[null,null,null,""]
[null,null,null,""]
[null,null,null,""]
[null,null,null,""]
[null,null,null,""]
[null,null,null,""]
[null,null,null,""]
[null,null,null,""]
[null,null,null,""]
[null,null,null,""]
[null,null,null,""]
[null,null,null,{"$f":"IF(C136=\"\",\"\",\"Buy\")","v":""}]
[null,null,null,""]
[null,null,null,""]
[null,null,null,""]
[null,null,null,""]
[null,null,null,""]
[null,null,null,""]
[null,null,null,""]
[null,null,null,""]
[null,null,null,""]
[null,null,null,""]
[null,null,null,""]
[null,null,null,""]
[null,null,null,""]
[null,null,null,""]
[null,null,null,""]
[null,null,null,""]
[null,null,null,""]
[null,null,null,""]
[null,null,null,""]
[null,null,null,""]
[null,null,null,""]
[null,null,null,""]
[null,null,null,""]
[null,null,null,""]
[null,null,null,""]
[null,null,null,""]
[null,null,null,""]
[null,null,null,""]
[null,null,null,""]
[null,null,null,""]
[null,null,null,""]
[null,null,null,""]
[null,null,null,""]
[null,null,null,""]
[null,null,null,""]
[null,null,null,""]
[null,null,null,""]
[null,null,null,""]
[null,null,null,""]
[null,null,null,""]
[null,null,null,""]
[null,null,null,""]
[null,null,null,""]
[null,null,null,""]
[null,null,null,""]
[null,null,null,""]
[null,null,null,""]
[null,null,null,""]
[null,null,null,""]
[null,null,null,""]
[null,null,null,""]
[null,null,null,""]
[null,null,null,""]
[null,null,null,""]
[null,null,null,""]
[null,null,null,""]
[null,null,null,""]
[null,null,null,""]
[null,null,null,""]
[null,null,null,""]
[null,null,null,""]
[null,null,null,""]
[null,null,null,""]
[null,null,null,{"$f":"IF(C200=\"\",\"\",\"Buy\")","v":""}]
[null,null,null,""]
[null,null,null,""]
[null,null,null,""]
[null,null,null,""]
[null,null,null,""]
[null,null,null,""]
[null,null,null,""]
[null,null,null,""]
[null,null,null,""]
[null,null,null,""]
[null,null,null,""]
[null,null,null,""]
[null,null,null,""]
[null,null,null,""]
[null,null,null,""]
[null,null,null,""]
[null,null,null,""]
[null,null,null,""]
[null,null,null,""]
[null,null,null,""]
[null,null,null,""]
[null,null,null,""]
[null,null,null,""]
[null,null,null,""]
[null,null,null,""]
[null,null,null,""]
[null,null,null,{"$f":"IF(C227=\"\",\"\",\"Buy\")","v":""}]
[null,null,null,""]
[null,null,null,""]
[null,null,null,""]
[null,null,null,""]
[null,null,null,""]
[null,null,null,""]
[null,null,null,""]
[null,null,null,""]
[null,null,null,""]
[null,null,null,""]
[null,null,null,""]
[null,null,null,""]
[null,null,null,""]
[null,null,null,""]
[null,null,null,""]
[null,null,null,""]
[null,null,null,""]
[null,null,null,""]
[null,null,null,""]
[null,null,null,""]
[null,null,null,""]
[null,null,null,""]
[null,null,null,""]
[null,null,null,""]
[null,null,null,""]
[null,null,null,""]
[null,null,null,""]
[null,null,null,""]
[null,null,null,""]
[null,null,null,""]
[null,null,null,""]
[null,null,null,""]
[null,null,null,""]
[null,null,null,""]
[null,null,null,""]
[null,null,null,""]
[null,null,null,{"$f":"IF(C264=\"\",\"\",\"Buy\")","v":""}]
[null,null,null,""]
[null,null,null,""]
[null,null,null,""]
[null,null,null,""]
[null,null,null,""]
[null,null,null,""]
[null,null,null,""]
[null,null,null,""]
[null,null,null,""]
[null,null,null,""]
[null,null,null,""]
[null,null,null,""]
[null,null,null,""]
[null,null,null,""]
[null,null,null,""]
[null,null,null,""]
[null,null,null,""]
[null,null,null,""]
[null,null,null,""]
[null,null,null,""]
[null,null,null,""]
[null,null,null,""]
[null,null,null,""]
[null,null,null,""]
[null,null,null,""]
[null,null,null,""]
[null,null,null,""]
[null,null,null,""]
[null,null,null,""]
[null,null,null,""]
[null,null,null,""]
[null,null,null,""]
[null,null,null,""]
[null,null,null,""]
[null,null,null,""]
[null,null,null,""]
[null,null,null,""]
[]
[]
[]
[]
[]
[]
[]
[]
[]
[]
[]
[]
[]
[]
[]
[]
[]
[]
[]
[]
[]
[]
[]
[]
[]
[]
[]
[]
[]
[]
[]
[]
[]
[]
[]
[]
[]
[]
[]
[]
[]
[]
[]
[]
[]
[]
[]
[]
[]
[]
[]
[]
[]
[]
[]
[]
[]
[]
[]
[]
[]
[]
[]
[]
[]
[]
[]
[]
[]
[]
[]
[]
[]
[]
[]
[]
[]
[]
[]
[]
[]
[]
[]
[]
[]
[]
[]
[]
[]
[]
[]
[]
[]
[]
[]
[]
[]
[]
[]
[]
[]
[]
[]
[]
[]
[]
[]
[]
[]
[]
[]
[]
[]
[]
[]
[]
[]
[]
[]
[]
[]
[]
[]
[]
[]
[]
[]
[]
[]
[]
[]
[]
[]
[]
[]
[]
[]
[]
[]
[]
[]
[]
[]
[]
[]
[]
[]
[]
[]
[]
[]
[]
[]
[]
[]
[]
[]
[]
[]
[]
[]
[]
[]
[]
[]
[]
[]
[]
[]
[]
[]
[]
[]
[]
[]
[]
[]
[]
[]
[]
[]
[]
[]
[]
[]
[]
[]
[]
[]
[]
[]
[]
[]
[]
[]
[]
[]
[]
[]
[]
[]
[]
[]
[]
[]
[]
[]
[]
[]
[]
[]
[]
[]
[]
[]
[]
[]
[]
[]
[]
[]
[]
[]
[]
[]
[]
[]
[]
[]
[]
[]
[]
[]
[null,null,null,{"$f":"IF(C535=\"\",\"\",\"Buy\")","v":""},null,null,{"$f":"IF(F535=\"\",\"\",\"EUR\")","v":""},{"$f":"IF(F535=\"\",\"\",\"XETRA\")","v":""}]
[null,null,null,"",null,null,"",""]
[null,null,null,"",null,null,"",""]
[null,null,null,"",null,null,"",""]
[null,null,null,"",null,null,"",""]
[null,null,null,"",null,null,"",""]
[null,null,null,"",null,null,"",""]
[null,null,null,"",null,null,"",""]
[null,null,null,"",null,null,"",""]
[null,null,null,"",null,null,"",""]
[null,null,null,"",null,null,"",""]
[null,null,null,"",null,null,"",""]
[null,null,null,"",null,null,"",""]
[null,null,null,"",null,null,"",""]
[null,null,null,"",null,null,"",""]
[null,null,null,"",null,null,"",""]
[null,null,null,"",null,null,"",""]
[null,null,null,"",null,null,"",""]
[null,null,null,"",null,null,"",""]
[null,null,null,"",null,null,"",""]
[null,null,null,"",null,null,"",""]
[null,null,null,"",null,null,"",""]
[null,null,null,"",null,null,"",""]
[null,null,null,"",null,null,"",""]
[null,null,null,"",null,null,"",""]
[null,null,null,"",null,null,"",""]
[null,null,null,"",null,null,"",""]
[null,null,null,"",null,null,"",""]
[null,null,null,"",null,null,"",""]
[null,null,null,"",null,null,"",""]
[null,null,null,"",null,null,"",""]
[null,null,null,"",null,null,"",""]
[null,null,null,"",null,null,"",""]
[null,null,null,"",null,null,"",""]
[null,null,null,"",null,null,"",""]
[null,null,null,"",null,null,"",""]
[null,null,null,"",null,null,"",""]
[null,null,null,"",null,null,"",""]
[null,null,null,"",null,null,"",""]
[null,null,null,"",null,null,"",""]
[null,null,null,"",null,null,"",""]
[null,null,null,"",null,null,"",""]
[null,null,null,"",null,null,"",""]
[null,null,null,"",null,null,"",""]
[null,null,null,"",null,null,"",""]
[null,null,null,"",null,null,"",""]
[null,null,null,"",null,null,"",""]
[null,null,null,"",null,null,"",""]
[null,null,null,"",null,null,"",""]
[null,null,null,{"$f":"IF(C584=\"\",\"\",\"Buy\")","v":""},null,null,{"$f":"IF(F584=\"\",\"\",\"EUR\")","v":""},""]
[null,null,null,"",null,null,"",""]
[null,null,null,"",null,null,"",""]
[null,null,null,"",null,null,"",""]
[null,null,null,"",null,null,"",""]
[null,null,null,"",null,null,"",""]
[null,null,null,"",null,null,"",""]
[null,null,null,"",null,null,"",""]
[null,null,null,"",null,null,"",""]
[null,null,null,"",null,null,"",""]
[null,null,null,"",null,null,"",""]
[null,null,null,"",null,null,"",""]
[null,null,null,"",null,null,"",""]
[null,null,null,"",null,null,"",""]
[null,null,null,"",null,null,"",""]
[null,null,null,"",null,null,"",{"$f":"IF(F599=\"\",\"\",\"XETRA\")","v":""}]
[null,null,null,"",null,null,"",""]
[null,null,null,"",null,null,"",""]
[null,null,null,"",null,null,"",""]
[null,null,null,"",null,null,"",""]
[null,null,null,"",null,null,"",""]
[null,null,null,"",null,null,"",""]
[null,null,null,"",null,null,"",""]
[null,null,null,"",null,null,"",""]
[null,null,null,"",null,null,"",""]
[null,null,null,"",null,null,"",""]
[null,null,null,"",null,null,"",""]
[null,null,null,"",null,null,"",""]
[null,null,null,"",null,null,"",""]
[null,null,null,"",null,null,"",""]
[null,null,null,"",null,null,"",""]
[null,null,null,"",null,null,"",""]
[null,null,null,"",null,null,"",""]
[null,null,null,"",null,null,"",""]
[null,null,null,"",null,null,"",""]
[null,null,null,"",null,null,"",""]
[null,null,null,"",null,null,"",""]
[null,null,null,"",null,null,"",""]
[null,null,null,"",null,null,"",""]
[null,null,null,"",null,null,"",""]
[null,null,null,"",null,null,"",""]
[null,null,null,"",null,null,"",""]
[null,null,null,"",null,null,"",""]
[null,null,null,"",null,null,"",""]
[null,null,null,"",null,null,"",""]
[null,null,null,"",null,null,"",""]
[null,null,null,"",null,null,"",""]
[null,null,null,"",null,null,"",""]
[null,null,null,"",null,null,"",""]
[null,null,null,"",null,null,"",""]
[null,null,null,"",null,null,"",""]
[null,null,null,"",null,null,"",""]
[null,null,null,"",null,null,"",""]
[null,null,null,"",null,null,"",""]
[null,null,null,"",null,null,"",""]
[null,null,null,"",null,null,"",""]
[null,null,null,"",null,null,"",""]
[null,null,null,"",null,null,"",""]
[null,null,null,"",null,null,"",""]
[null,null,null,"",null,null,"",""]
[null,null,null,"",null,null,"",""]
[null,null,null,"",null,null,"",""]
[null,null,null,"",null,null,"",""]
[null,null,null,"",null,null,"",""]
[null,null,null,{"$f":"IF(C648=\"\",\"\",\"Buy\")","v":""},null,null,{"$f":"IF(F648=\"\",\"\",\"EUR\")","v":""},""]
[null,null,null,"",null,null,"",""]
[null,null,null,"",null,null,"",""]
[null,null,null,"",null,null,"",""]
[null,null,null,"",null,null,"",""]
[null,null,null,"",null,null,"",""]
[null,null,null,"",null,null,"",""]
[null,null,null,"",null,null,"",""]
[null,null,null,"",null,null,"",""]
[null,null,null,"",null,null,"",""]
[null,null,null,"",null,null,"",""]
[null,null,null,"",null,null,"",""]
[null,null,null,"",null,null,"",""]
[null,null,null,"",null,null,"",""]
[null,null,null,"",null,null,"",""]
[null,null,null,"",null,null,"",{"$f":"IF(F663=\"\",\"\",\"XETRA\")","v":""}]
[null,null,null,"",null,null,"",""]
[null,null,null,"",null,null,"",""]
[null,null,null,"",null,null,"",""]
[null,null,null,"",null,null,"",""]
[null,null,null,"",null,null,"",""]
[null,null,null,"",null,null,"",""]
[null,null,null,"",null,null,"",""]
[null,null,null,"",null,null,"",""]
[null,null,null,"",null,null,"",""]
[null,null,null,"",null,null,"",""]
[null,null,null,"",null,null,"",""]
[null,null,null,"",null,null,"",""]
[null,null,null,"",null,null,"",""]
[null,null,null,"",null,null,"",""]
[null,null,null,"",null,null,"",""]
[null,null,null,"",null,null,"",""]
[null,null,null,"",null,null,"",""]
[null,null,null,"",null,null,"",""]
[null,null,null,"",null,null,"",""]
[null,null,null,"",null,null,"",""]
[null,null,null,"",null,null,"",""]
[null,null,null,"",null,null,"",""]
[null,null,null,"",null,null,"",""]
[null,null,null,"",null,null,"",""]
[null,null,null,"",null,null,"",""]
[null,null,null,"",null,null,"",""]
[null,null,null,"",null,null,"",""]
[null,null,null,"",null,null,"",""]
[null,null,null,"",null,null,"",""]
[null,null,null,"",null,null,"",""]
[null,null,null,"",null,null,"",""]
[null,null,null,"",null,null,"",""]
[null,null,null,"",null,null,"",""]
[null,null,null,"",null,null,"",""]
[null,null,null,"",null,null,"",""]
[null,null,null,"",null,null,"",""]
[null,null,null,"",null,null,"",""]
[null,null,null,"",null,null,"",""]
[null,null,null,"",null,null,"",""]
[null,null,null,"",null,null,"",""]
[null,null,null,"",null,null,"",""]
[null,null,null,"",null,null,"",""]
[null,null,null,"",null,null,"",""]
[null,null,null,"",null,null,"",""]
[null,null,null,"",null,null,"",""]
[null,null,null,"",null,null,"",""]
[null,null,null,"",null,null,"",""]
[null,null,null,"",null,null,"",""]
[null,null,null,{"$f":"IF(C712=\"\",\"\",\"Buy\")","v":""},null,null,{"$f":"IF(F712=\"\",\"\",\"EUR\")","v":""},""]
[null,null,null,"",null,null,"",""]
[null,null,null,"",null,null,"",""]
[null,null,null,"",null,null,"",""]
[null,null,null,"",null,null,"",""]
[null,null,null,"",null,null,"",""]
[null,null,null,"",null,null,"",""]
[null,null,null,"",null,null,"",""]
[null,null,null,"",null,null,"",""]
[null,null,null,"",null,null,"",""]
[null,null,null,"",null,null,"",""]
[null,null,null,"",null,null,"",""]
[null,null,null,"",null,null,"",""]
[null,null,null,"",null,null,"",""]
[null,null,null,"",null,null,"",""]
[null,null,null,"",null,null,"",{"$f":"IF(F727=\"\",\"\",\"XETRA\")","v":""}]
[null,null,null,"",null,null,"",""]
[null,null,null,"",null,null,"",""]
[null,null,null,"",null,null,"",""]
[null,null,null,"",null,null,"",""]
[null,null,null,"",null,null,"",""]
[null,null,null,"",null,null,"",""]
[null,null,null,"",null,null,"",""]
[null,null,null,"",null,null,"",""]
[null,null,null,"",null,null,"",""]
[null,null,null,"",null,null,"",""]
[null,null,null,"",null,null,"",""]
[null,null,null,"",null,null,"",""]
[null,null,null,"",null,null,"",""]
[null,null,null,"",null,null,"",""]
[null,null,null,"",null,null,"",""]
[null,null,null,"",null,null,"",""]
[null,null,null,"",null,null,"",""]
[null,null,null,"",null,null,"",""]
[null,null,null,"",null,null,"",""]
[null,null,null,"",null,null,"",""]
[null,null,null,"",null,null,"",""]
[null,null,null,"",null,null,"",""]
[null,null,null,"",null,null,"",""]
[null,null,null,"",null,null,"",""]
[null,null,null,"",null,null,"",""]
[null,null,null,"",null,null,"",""]
[null,null,null,"",null,null,"",""]
[null,null,null,"",null,null,"",""]
[null,null,null,"",null,null,"",""]
[null,null,null,"",null,null,"",""]
[null,null,null,"",null,null,"",""]
[null,null,null,"",null,null,"",""]
[null,null,null,"",null,null,"",""]
[null,null,null,"",null,null,"",""]
[null,null,null,"",null,null,"",""]
[null,null,null,"",null,null,"",""]
[null,null,null,"",null,null,"",""]
[null,null,null,"",null,null,"",""]
[null,null,null,"",null,null,"",""]
[null,null,null,"",null,null,"",""]
[null,null,null,"",null,null,"",""]
[null,null,null,"",null,null,"",""]
[null,null,null,"",null,null,"",""]
[null,null,null,"",null,null,"",""]
[null,null,null,"",null,null,"",""]
[null,null,null,"",null,null,"",""]
[null,null,null,"",null,null,"",""]
[null,null,null,"",null,null,"",""]
[null,null,null,{"$f":"IF(C776=\"\",\"\",\"Buy\")","v":""},null,null,{"$f":"IF(F776=\"\",\"\",\"EUR\")","v":""},""]
[null,null,null,"",null,null,"",""]
[null,null,null,"",null,null,"",""]
[null,null,null,"",null,null,"",""]
[null,null,null,"",null,null,"",""]
[null,null,null,"",null,null,"",""]
[null,null,null,"",null,null,"",""]
[null,null,null,"",null,null,"",""]
[null,null,null,"",null,null,"",""]
[null,null,null,"",null,null,"",""]
[null,null,null,"",null,null,"",""]
[null,null,null,"",null,null,"",""]
[null,null,null,"",null,null,"",""]
[null,null,null,"",null,null,"",""]
[null,null,null,"",null,null,"",""]
[null,null,null,"",null,null,"",{"$f":"IF(F791=\"\",\"\",\"XETRA\")","v":""}]
[null,null,null,"",null,null,"",""]
[null,null,null,"",null,null,"",""]
[null,null,null,"",null,null,"",""]
[null,null,null,"",null,null,"",""]
[null,null,null,"",null,null,"",""]
[null,null,null,"",null,null,"",""]
[null,null,null,"",null,null,"",""]
[null,null,null,"",null,null,"",""]
[null,null,null,"",null,null,"",""]
[null,null,null,"",null,null,"",""]
[null,null,null,"",null,null,"",""]
[null,null,null,"",null,null,"",""]
[null,null,null,"",null,null,"",""]
[null,null,null,"",null,null,"",""]
[null,null,null,"",null,null,"",""]
[null,null,null,"",null,null,"",""]
[null,null,null,"",null,null,"",""]
[null,null,null,"",null,null,"",""]
[null,null,null,"",null,null,"",""]
[null,null,null,"",null,null,"",""]
[null,null,null,"",null,null,"",""]
[null,null,null,"",null,null,"",""]
[null,null,null,"",null,null,"",""]
[null,null,null,"",null,null,"",""]
[null,null,null,"",null,null,"",""]
[null,null,null,"",null,null,"",""]
[null,null,null,"",null,null,"",""]
[null,null,null,"",null,null,"",""]
[null,null,null,"",null,null,"",""]
[null,null,null,"",null,null,"",""]
[null,null,null,"",null,null,"",""]
[null,null,null,"",null,null,"",""]
[null,null,null,"",null,null,"",""]
[null,null,null,"",null,null,"",""]
[null,null,null,"",null,null,"",""]
[null,null,null,"",null,null,"",""]
[null,null,null,"",null,null,"",""]
[null,null,null,"",null,null,"",""]
[null,null,null,"",null,null,"",""]
[null,null,null,"",null,null,"",""]
[null,null,null,"",null,null,"",""]
[null,null,null,"",null,null,"",""]
[null,null,null,"",null,null,"",""]
[null,null,null,"",null,null,"",""]
[null,null,null,"",null,null,"",""]
[null,null,null,"",null,null,"",""]
[null,null,null,"",null,null,"",""]
[null,null,null,"",null,null,"",""]
[null,null,null,{"$f":"IF(C840=\"\",\"\",\"Buy\")","v":""},null,null,{"$f":"IF(F840=\"\",\"\",\"EUR\")","v":""},""]
[null,null,null,"",null,null,"",""]
[null,null,null,"",null,null,"",""]
[null,null,null,"",null,null,"",""]
[null,null,null,"",null,null,"",""]
[null,null,null,"",null,null,"",""]
[null,null,null,"",null,null,"",""]
[null,null,null,"",null,null,"",""]
[null,null,null,"",null,null,"",""]
[null,null,null,"",null,null,"",""]
[null,null,null,"",null,null,"",""]
[null,null,null,"",null,null,"",""]
[null,null,null,"",null,null,"",""]
[null,null,null,"",null,null,"",""]
[null,null,null,"",null,null,"",""]
[null,null,null,"",null,null,"",{"$f":"IF(F855=\"\",\"\",\"XETRA\")","v":""}]
[null,null,null,"",null,null,"",""]
[null,null,null,"",null,null,"",""]
[null,null,null,"",null,null,"",""]
[null,null,null,"",null,null,"",""]
[null,null,null,"",null,null,"",""]
[null,null,null,"",null,null,"",""]
[null,null,null,"",null,null,"",""]
[null,null,null,"",null,null,"",""]
[null,null,null,"",null,null,"",""]
[null,null,null,"",null,null,"",""]
[null,null,null,"",null,null,"",""]
[null,null,null,"",null,null,"",""]
[null,null,null,"",null,null,"",""]
[null,null,null,"",null,null,"",""]
[null,null,null,"",null,null,"",""]
[null,null,null,"",null,null,"",""]
[null,null,null,"",null,null,"",""]
[null,null,null,"",null,null,"",""]
[null,null,null,"",null,null,"",""]
[null,null,null,"",null,null,"",""]
[null,null,null,"",null,null,"",""]
[null,null,null,"",null,null,"",""]
[null,null,null,"",null,null,"",""]
[null,null,null,"",null,null,"",""]
[null,null,null,"",null,null,"",""]
[null,null,null,"",null,null,"",""]
[null,null,null,"",null,null,"",""]
[null,null,null,"",null,null,"",""]
[null,null,null,"",null,null,"",""]
[null,null,null,"",null,null,"",""]
[null,null,null,"",null,null,"",""]
[null,null,null,"",null,null,"",""]
[null,null,null,"",null,null,"",""]
[null,null,null,"",null,null,"",""]
[null,null,null,"",null,null,"",""]
[null,null,null,"",null,null,"",""]
[null,null,null,"",null,null,"",""]
[null,null,null,"",null,null,"",""]
[null,null,null,"",null,null,"",""]
[null,null,null,"",null,null,"",""]
[null,null,null,"",null,null,"",""]
[null,null,null,"",null,null,"",""]
[null,null,null,"",null,null,"",""]
[null,null,null,"",null,null,"",""]
[null,null,null,"",null,null,"",""]
[null,null,null,"",null,null,"",""]
[null,null,null,"",null,null,"",""]
[null,null,null,"",null,null,"",""]
[null,null,null,{"$f":"IF(C904=\"\",\"\",\"Buy\")","v":""},null,null,{"$f":"IF(F904=\"\",\"\",\"EUR\")","v":""},""]
[null,null,null,"",null,null,"",""]
[null,null,null,"",null,null,"",""]
[null,null,null,"",null,null,"",""]
[null,null,null,"",null,null,"",""]
[null,null,null,"",null,null,"",""]
[null,null,null,"",null,null,"",""]
[null,null,null,"",null,null,"",""]
[null,null,null,"",null,null,"",""]
[null,null,null,"",null,null,"",""]
[null,null,null,"",null,null,"",""]
[null,null,null,"",null,null,"",""]
[null,null,null,"",null,null,"",""]
[null,null,null,"",null,null,"",""]
[null,null,null,"",null,null,"",""]
[null,null,null,"",null,null,"",{"$f":"IF(F919=\"\",\"\",\"XETRA\")","v":""}]
[null,null,null,"",null,null,"",""]
[null,null,null,"",null,null,"",""]
[null,null,null,"",null,null,"",""]
[null,null,null,"",null,null,"",""]
[null,null,null,"",null,null,"",""]
[null,null,null,"",null,null,"",""]
[null,null,null,"",null,null,"",""]
[null,null,null,"",null,null,"",""]
[null,null,null,"",null,null,"",""]
[null,null,null,"",null,null,"",""]
[null,null,null,"",null,null,"",""]
[null,null,null,"",null,null,"",""]
[null,null,null,"",null,null,"",""]
[null,null,null,"",null,null,"",""]
[null,null,null,"",null,null,"",""]
[null,null,null,"",null,null,"",""]
[null,null,null,"",null,null,"",""]
[null,null,null,"",null,null,"",""]
[null,null,null,"",null,null,"",""]
[null,null,null,"",null,null,"",""]
[null,null,null,"",null,null,"",""]
[null,null,null,"",null,null,"",""]
[null,null,null,"",null,null,"",""]
[null,null,null,"",null,null,"",""]
[null,null,null,"",null,null,"",""]
[null,null,null,"",null,null,"",""]
[null,null,null,"",null,null,"",""]
[null,null,null,"",null,null,"",""]
[null,null,null,"",null,null,"",""]
[null,null,null,"",null,null,"",""]
[null,null,null,"",null,null,"",""]
[null,null,null,"",null,null,"",""]
[null,null,null,"",null,null,"",""]
[null,null,null,"",null,null,"",""]
[null,null,null,"",null,null,"",""]
[null,null,null,"",null,null,"",""]
[null,null,null,"",null,null,"",""]
[null,null,null,"",null,null,"",""]
[null,null,null,"",null,null,"",""]
[null,null,null,"",null,null,"",""]
[null,null,null,"",null,null,"",""]
[null,null,null,"",null,null,"",""]
[null,null,null,"",null,null,"",""]
[null,null,null,"",null,null,"",""]
[null,null,null,"",null,null,"",""]
[null,null,null,"",null,null,"",""]
[null,null,null,"",null,null,"",""]
[null,null,null,"",null,null,"",""]
[null,null,null,{"$f":"IF(C968=\"\",\"\",\"Buy\")","v":""},null,null,{"$f":"IF(F968=\"\",\"\",\"EUR\")","v":""},""]
[null,null,null,"",null,null,"",""]
[null,null,null,"",null,null,"",""]
[null,null,null,"",null,null,"",""]
[null,null,null,"",null,null,"",""]
[null,null,null,"",null,null,"",""]
[null,null,null,"",null,null,"",""]
[null,null,null,"",null,null,"",""]
[null,null,null,"",null,null,"",""]
[null,null,null,"",null,null,"",""]
[null,null,null,"",null,null,"",""]
[null,null,null,"",null,null,"",""]
[null,null,null,"",null,null,"",""]
[null,null,null,"",null,null,"",""]
[null,null,null,"",null,null,"",""]
[null,null,null,"",null,null,"",{"$f":"IF(F983=\"\",\"\",\"XETRA\")","v":""}]
[null,null,null,"",null,null,"",""]
[null,null,null,"",null,null,"",""]
[null,null,null,"",null,null,"",""]
[null,null,null,"",null,null,"",""]
[null,null,null,"",null,null,"",""]
[null,null,null,"",null,null,"",""]
[null,null,null,"",null,null,"",""]
[null,null,null,"",null,null,"",""]
[null,null,null,"",null,null,"",""]
[null,null,null,"",null,null,"",""]
[null,null,null,"",null,null,"",""]
[null,null,null,"",null,null,"",""]
[null,null,null,"",null,null,"",""]
[null,null,null,"",null,null,"",""]
[null,null,null,"",null,null,"",""]
[null,null,null,"",null,null,"",""]
[null,null,null,"",null,null,"",""]
[null,null,null,"",null,null,"",""]
[null,null,null,"",null,null,"",""]
[null,null,null,"",null,null,"",""]
[null,null,null,"",null,null,"",""]
[null,null,null,"",null,null,"",""]
[null,null,null,"",null,null,"",""]
[null,null,null,"",null,null,"",""]
[null,null,null,"",null,null,"",""]
[null,null,null,"",null,null,"",""]
[null,null,null,"",null,null,"",""]
[null,null,null,"",null,null,"",""]
[null,null,null,"",null,null,"",""]
[null,null,null,"",null,null,"",""]
[null,null,null,"",null,null,"",""]
[null,null,null,"",null,null,"",""]
[null,null,null,"",null,null,"",""]
[null,null,null,"",null,null,"",""]
[null,null,null,"",null,null,"",""]
[null,null,null,"",null,null,"",""]
[null,null,null,"",null,null,"",""]
[null,null,null,"",null,null,"",""]
[null,null,null,"",null,null,"",""]
[null,null,null,"",null,null,"",""]
[null,null,null,"",null,null,"",""]
[null,null,null,"",null,null,"",""]
[null,null,null,"",null,null,"",""]
[null,null,null,"",null,null,"",""]
[null,null,null,"",null,null,"",""]
[null,null,null,"",null,null,"",""]
[null,null,null,"",null,null,"",""]
[null,null,null,"",null,null,"",""]
[null,null,null,{"$f":"IF(C1032=\"\",\"\",\"Buy\")","v":""},null,null,{"$f":"IF(F1032=\"\",\"\",\"EUR\")","v":""},""]
[null,null,null,"",null,null,"",""]
[null,null,null,"",null,null,"",""]
[null,null,null,"",null,null,"",""]
[null,null,null,"",null,null,"",""]
[null,null,null,"",null,null,"",""]
[null,null,null,"",null,null,"",""]
[null,null,null,"",null,null,"",""]
[null,null,null,"",null,null,"",""]
[null,null,null,"",null,null,"",""]
[null,null,null,"",null,null,"",""]
[null,null,null,"",null,null,"",""]
[null,null,null,"",null,null,"",""]
[null,null,null,"",null,null,"",""]
[null,null,null,"",null,null,"",""]
[null,null,null,"",null,null,"",{"$f":"IF(F1047=\"\",\"\",\"XETRA\")","v":""}]
[null,null,null,"",null,null,"",""]
[null,null,null,"",null,null,"",""]
[null,null,null,"",null,null,"",""]
[null,null,null,"",null,null,"",""]
[null,null,null,"",null,null,"",""]
[null,null,null,"",null,null,"",""]
[null,null,null,"",null,null,"",""]
[null,null,null,"",null,null,"",""]
[null,null,null,"",null,null,"",""]
[null,null,null,"",null,null,"",""]
[null,null,null,"",null,null,"",""]
[null,null,null,"",null,null,"",""]
[null,null,null,"",null,null,"",""]
[null,null,null,"",null,null,"",""]
[null,null,null,"",null,null,"",""]
[null,null,null,"",null,null,"",""]
[null,null,null,"",null,null,"",""]
[null,null,null,"",null,null,"",""]
[null,null,null,"",null,null,"",""]
[null,null,null,"",null,null,"",""]
[null,null,null,"",null,null,"",""]
[null,null,null,"",null,null,"",""]
[null,null,null,"",null,null,"",""]
[null,null,null,"",null,null,"",""]
[null,null,null,"",null,null,"",""]
[null,null,null,"",null,null,"",""]
[null,null,null,"",null,null,"",""]
[null,null,null,"",null,null,"",""]
[null,null,null,"",null,null,"",""]
[null,null,null,"",null,null,"",""]
[null,null,null,"",null,null,"",""]
[null,null,null,"",null,null,"",""]
[null,null,null,"",null,null,"",""]
[null,null,null,"",null,null,"",""]
[null,null,null,"",null,null,"",""]
[null,null,null,"",null,null,"",""]
[null,null,null,"",null,null,"",""]
[null,null,null,"",null,null,"",""]
[null,null,null,"",null,null,"",""]
[null,null,null,"",null,null,"",""]
[null,null,null,"",null,null,"",""]
[null,null,null,"",null,null,"",""]
[null,null,null,"",null,null,"",""]
[null,null,null,"",null,null,"",""]
[null,null,null,"",null,null,"",""]
[null,null,null,"",null,null,"",""]
[null,null,null,"",null,null,"",""]
[null,null,null,"",null,null,"",""]
[null,null,null,{"$f":"IF(C1096=\"\",\"\",\"Buy\")","v":""},null,null,{"$f":"IF(F1096=\"\",\"\",\"EUR\")","v":""},""]
[null,null,null,"",null,null,"",""]
[null,null,null,"",null,null,"",""]
[null,null,null,"",null,null,"",""]
[null,null,null,"",null,null,"",""]
[null,null,null,"",null,null,"",""]
[null,null,null,"",null,null,"",""]
[null,null,null,"",null,null,"",""]
[null,null,null,"",null,null,"",""]
[null,null,null,"",null,null,"",""]
[null,null,null,"",null,null,"",""]
[null,null,null,"",null,null,"",""]
[null,null,null,"",null,null,"",""]
[null,null,null,"",null,null,"",""]
[null,null,null,"",null,null,"",""]
[null,null,null,"",null,null,"",{"$f":"IF(F1111=\"\",\"\",\"XETRA\")","v":""}]
[null,null,null,"",null,null,"",""]
[null,null,null,"",null,null,"",""]
[null,null,null,"",null,null,"",""]
[null,null,null,"",null,null,"",""]
[null,null,null,"",null,null,"",""]
[null,null,null,"",null,null,"",""]
[null,null,null,"",null,null,"",""]
[null,null,null,"",null,null,"",""]
[null,null,null,"",null,null,"",""]
[null,null,null,"",null,null,"",""]
[null,null,null,"",null,null,"",""]
[null,null,null,"",null,null,"",""]
[null,null,null,"",null,null,"",""]
[null,null,null,"",null,null,"",""]
[null,null,null,"",null,null,"",""]
[null,null,null,"",null,null,"",""]
[null,null,null,"",null,null,"",""]
[null,null,null,"",null,null,"",""]
[null,null,null,"",null,null,"",""]
[null,null,null,"",null,null,"",""]
[null,null,null,"",null,null,"",""]
[null,null,null,"",null,null,"",""]
[null,null,null,"",null,null,"",""]
[null,null,null,"",null,null,"",""]
[null,null,null,"",null,null,"",""]
[null,null,null,"",null,null,"",""]
[null,null,null,"",null,null,"",""]
[null,null,null,"",null,null,"",""]
[null,null,null,"",null,null,"",""]
[null,null,null,"",null,null,"",""]
[null,null,null,"",null,null,"",""]
[null,null,null,"",null,null,"",""]
[null,null,null,"",null,null,"",""]
[null,null,null,"",null,null,"",""]
[null,null,null,"",null,null,"",""]
[null,null,null,"",null,null,"",""]
[null,null,null,"",null,null,"",""]
[null,null,null,"",null,null,"",""]
[null,null,null,"",null,null,"",""]
[null,null,null,"",null,null,"",""]
[null,null,null,"",null,null,"",""]
[null,null,null,"",null,null,"",""]
[null,null,null,"",null,null,"",""]
[null,null,null,"",null,null,"",""]
[null,null,null,"",null,null,"",""]
[null,null,null,"",null,null,"",""]
[null,null,null,""]
[null,null,null,""]
[null,null,null,{"$f":"IF(C1160=\"\",\"\",\"Buy\")","v":""}]
[null,null,null,""]
[null,null,null,""]
[null,null,null,""]
[null,null,null,""]
[null,null,null,""]

{"sheet":"25-Februar-2020_GER","index":2,"n_rows":999,"n_cols":8,"rows_kept":999,"cut":false,"hidden":false,"merged":[]}
["Fresenius Medical Care AG & Co. KGaA Aktienrückkauf 2019"]
[]
[null,null,"Handelsdatum","Anzahl zurückgekaufte Aktien","Durchschnittspreis\nin € je Aktie","Rückkaufsvolumen \nin €"]
[null,null,"2020-02-25",{"$f":"SUM(E7:E2000)","v":0},0,{"$f":"SUMPRODUCT(E7:E5000,F7:F5000)","v":0}]
[]
[null,"Handelsdatum","Handelszeit","Kauf / Verkauf","Nominale","Ausführungspreis","Währung","Handelsplatz"]
[null,{"$f":"$C$4","v":"2020-02-25"},null,{"$f":"IF(C7=\"\",\"\",\"Buy\")","v":""}]
[null,null,null,""]
[null,null,null,""]
[null,null,null,""]
[null,null,null,""]
[null,null,null,""]
[null,null,null,""]
[null,null,null,""]
[null,null,null,""]
[null,null,null,""]
[null,null,null,""]
[null,null,null,""]
[null,null,null,""]
[null,null,null,""]
[null,null,null,""]
[null,null,null,""]
[null,null,null,""]
[null,null,null,""]
[null,null,null,""]
[null,null,null,""]
[null,null,null,""]
[null,null,null,""]
[null,null,null,""]
[null,null,null,""]
[null,null,null,""]
[null,null,null,""]
[null,null,null,""]
[null,null,null,""]
[null,null,null,""]
[null,null,null,""]
[null,null,null,""]
[null,null,null,""]
[null,null,null,""]
[null,null,null,""]
[null,null,null,""]
[null,null,null,""]
[null,null,null,""]
[null,null,null,""]
[null,null,null,""]
[null,null,null,""]
[null,null,null,""]
[null,null,null,""]
[null,null,null,""]
[null,null,null,""]
[null,null,null,""]
[null,null,null,""]
[null,null,null,""]
[null,null,null,""]
[null,null,null,""]
[null,null,null,""]
[null,null,null,""]
[null,null,null,""]
[null,null,null,""]
[null,null,null,""]
[null,null,null,""]
[null,null,null,""]
[null,null,null,""]
[null,null,null,""]
[null,null,null,""]
[null,null,null,""]
[null,null,null,""]
[null,null,null,""]
[null,null,null,""]
[null,null,null,""]
[null,null,null,{"$f":"IF(C71=\"\",\"\",\"Buy\")","v":""}]
[null,null,null,""]
[null,null,null,""]
[null,null,null,""]
[null,null,null,""]
[null,null,null,""]
[null,null,null,""]
[null,null,null,""]
[null,null,null,""]
[null,null,null,""]
[null,null,null,""]
[null,null,null,""]
[null,null,null,""]
[null,null,null,""]
[null,null,null,""]
[null,null,null,""]
[null,null,null,""]
[null,null,null,""]
[null,null,null,""]
[null,null,null,""]
[null,null,null,""]
[null,null,null,""]
[null,null,null,""]
[null,null,null,""]
[null,null,null,""]
[null,null,null,""]
[null,null,null,""]
[null,null,null,""]
[null,null,null,""]
[null,null,null,""]
[null,null,null,""]
[null,null,null,""]
[null,null,null,""]
[null,null,null,""]
[null,null,null,""]
[null,null,null,""]
[null,null,null,""]
[null,null,null,""]
[null,null,null,""]
[null,null,null,""]
[null,null,null,""]
[null,null,null,""]
[null,null,null,""]
[null,null,null,""]
[null,null,null,""]
[null,null,null,""]
[null,null,null,""]
[null,null,null,""]
[null,null,null,""]
[null,null,null,""]
[null,null,null,""]
[null,null,null,""]
[null,null,null,""]
[null,null,null,""]
[null,null,null,""]
[null,null,null,""]
[null,null,null,""]
[null,null,null,""]
[null,null,null,""]
[null,null,null,""]
[null,null,null,""]
[null,null,null,""]
[null,null,null,""]
[null,null,null,""]
[null,null,null,{"$f":"IF(C135=\"\",\"\",\"Buy\")","v":""}]
[null,null,null,""]
[null,null,null,""]
[null,null,null,""]
[null,null,null,""]
[null,null,null,""]
[null,null,null,""]
[null,null,null,""]
[null,null,null,""]
[null,null,null,""]
[null,null,null,""]
[null,null,null,""]
[null,null,null,""]
[null,null,null,""]
[null,null,null,""]
[null,null,null,""]
[null,null,null,""]
[null,null,null,""]
[null,null,null,""]
[null,null,null,""]
[null,null,null,""]
[null,null,null,""]
[null,null,null,""]
[null,null,null,""]
[null,null,null,""]
[null,null,null,""]
[null,null,null,""]
[null,null,null,""]
[null,null,null,""]
[null,null,null,""]
[null,null,null,""]
[null,null,null,""]
[null,null,null,""]
[null,null,null,""]
[null,null,null,""]
[null,null,null,""]
[null,null,null,""]
[null,null,null,""]
[null,null,null,""]
[null,null,null,""]
[null,null,null,""]
[null,null,null,""]
[null,null,null,""]
[null,null,null,""]
[null,null,null,""]
[null,null,null,""]
[null,null,null,""]
[null,null,null,""]
[null,null,null,""]
[null,null,null,""]
[null,null,null,""]
[null,null,null,""]
[null,null,null,""]
[null,null,null,""]
[null,null,null,""]
[null,null,null,""]
[null,null,null,""]
[null,null,null,""]
[null,null,null,""]
[null,null,null,""]
[null,null,null,""]
[null,null,null,""]
[null,null,null,""]
[null,null,null,""]
[null,null,null,{"$f":"IF(C199=\"\",\"\",\"Buy\")","v":""}]
[null,null,null,""]
[null,null,null,""]
[null,null,null,""]
[null,null,null,""]
[null,null,null,""]
[null,null,null,""]
[null,null,null,""]
[null,null,null,""]
[null,null,null,""]
[null,null,null,""]
[null,null,null,""]
[null,null,null,""]
[null,null,null,""]
[null,null,null,""]
[null,null,null,""]
[null,null,null,""]
[null,null,null,""]
[null,null,null,""]
[null,null,null,""]
[null,null,null,""]
[null,null,null,""]
[null,null,null,""]
[null,null,null,""]
[null,null,null,""]
[null,null,null,""]
[null,null,null,""]
[null,null,null,""]
[null,null,null,""]
[null,null,null,""]
[null,null,null,""]
[null,null,null,""]
[null,null,null,""]
[null,null,null,""]
[null,null,null,""]
[null,null,null,""]
[null,null,null,""]
[null,null,null,""]
[null,null,null,""]
[null,null,null,""]
[null,null,null,""]
[null,null,null,""]
[null,null,null,""]
[null,null,null,""]
[null,null,null,""]
[null,null,null,""]
[null,null,null,""]
[null,null,null,""]
[null,null,null,""]
[null,null,null,""]
[null,null,null,""]
[null,null,null,""]
[null,null,null,""]
[null,null,null,""]
[null,null,null,""]
[null,null,null,""]
[null,null,null,""]
[null,null,null,""]
[null,null,null,""]
[null,null,null,""]
[null,null,null,""]
[null,null,null,""]
[null,null,null,""]
[null,null,null,""]
[null,null,null,{"$f":"IF(C263=\"\",\"\",\"Buy\")","v":""}]
[null,null,null,""]
[null,null,null,""]
[null,null,null,""]
[null,null,null,""]
[null,null,null,""]
[null,null,null,""]
[null,null,null,""]
[null,null,null,""]
[null,null,null,""]
[null,null,null,""]
[null,null,null,""]
[null,null,null,""]
[null,null,null,""]
[null,null,null,""]
[null,null,null,""]
[null,null,null,""]
[null,null,null,""]
[null,null,null,""]
[null,null,null,""]
[null,null,null,""]
[null,null,null,""]
[null,null,null,""]
[null,null,null,""]
[null,null,null,""]
[null,null,null,""]
[null,null,null,""]
[null,null,null,""]
[null,null,null,""]
[null,null,null,""]
[null,null,null,""]
[null,null,null,""]
[null,null,null,""]
[null,null,null,""]
[null,null,null,""]
[null,null,null,""]
[null,null,null,""]
[null,null,null,""]
[null,null,null,""]
[null,null,null,""]
[null,null,null,""]
[null,null,null,""]
[null,null,null,""]
[null,null,null,""]
[null,null,null,""]
[null,null,null,""]
[null,null,null,""]
[null,null,null,""]
[null,null,null,""]
[null,null,null,""]
[null,null,null,""]
[null,null,null,""]
[null,null,null,""]
[null,null,null,""]
[null,null,null,""]
[null,null,null,""]
[null,null,null,""]
[null,null,null,""]
[null,null,null,""]
[null,null,null,""]
[null,null,null,""]
[null,null,null,""]
[null,null,null,""]
[null,null,null,""]
[null,null,null,{"$f":"IF(C327=\"\",\"\",\"Buy\")","v":""}]
[null,null,null,""]
[null,null,null,""]
[null,null,null,""]
[null,null,null,""]
[null,null,null,""]
[null,null,null,""]
[null,null,null,""]
[null,null,null,""]
[null,null,null,""]
[null,null,null,""]
[null,null,null,""]
[null,null,null,""]
[null,null,null,""]
[null,null,null,""]
[null,null,null,""]
[null,null,null,""]
[null,null,null,""]
[null,null,null,""]
[null,null,null,""]
[null,null,null,""]
[null,null,null,""]
[null,null,null,""]
[null,null,null,""]
[null,null,null,""]
[null,null,null,""]
[null,null,null,""]
[null,null,null,""]
[null,null,null,""]
[null,null,null,""]
[null,null,null,""]
[null,null,null,""]
[null,null,null,""]
[null,null,null,""]
[null,null,null,""]
[null,null,null,""]
[null,null,null,""]
[null,null,null,""]
[null,null,null,""]
[null,null,null,""]
[null,null,null,""]
[null,null,null,""]
[null,null,null,""]
[null,null,null,""]
[null,null,null,""]
[null,null,null,""]
[null,null,null,""]
[null,null,null,""]
[null,null,null,""]
[null,null,null,""]
[null,null,null,""]
[null,null,null,""]
[null,null,null,""]
[null,null,null,""]
[null,null,null,""]
[null,null,null,""]
[null,null,null,""]
[null,null,null,""]
[null,null,null,""]
[null,null,null,""]
[null,null,null,""]
[null,null,null,""]
[null,null,null,""]
[null,null,null,""]
[null,null,null,{"$f":"IF(C391=\"\",\"\",\"Buy\")","v":""}]
[null,null,null,""]
[null,null,null,""]
[null,null,null,""]
[null,null,null,""]
[null,null,null,""]
[null,null,null,""]
[null,null,null,""]
[null,null,null,""]
[null,null,null,""]
[null,null,null,""]
[null,null,null,""]
[null,null,null,""]
[null,null,null,""]
[null,null,null,""]
[null,null,null,""]
[null,null,null,""]
[null,null,null,""]
[null,null,null,""]
[null,null,null,""]
[null,null,null,""]
[null,null,null,""]
[null,null,null,""]
[null,null,null,""]
[null,null,null,""]
[null,null,null,""]
[null,null,null,""]
[null,null,null,""]
[null,null,null,""]
[null,null,null,""]
[null,null,null,""]
[null,null,null,""]
[null,null,null,""]
[null,null,null,""]
[null,null,null,""]
[null,null,null,""]
[null,null,null,""]
[null,null,null,""]
[null,null,null,""]
[null,null,null,""]
[null,null,null,""]
[]
[]
[null,null,null,{"$f":"IF(C434=\"\",\"\",\"Buy\")","v":""}]
[null,null,null,""]
[null,null,null,""]
[null,null,null,""]
[null,null,null,""]
[null,null,null,""]
[null,null,null,""]
[null,null,null,""]
[null,null,null,""]
[null,null,null,""]
[null,null,null,""]
[null,null,null,""]
[null,null,null,""]
[null,null,null,""]
[null,null,null,""]
[null,null,null,""]
[null,null,null,""]
[null,null,null,""]
[null,null,null,""]
[null,null,null,""]
[null,null,null,""]
[null,null,null,""]
[null,null,null,{"$f":"IF(C456=\"\",\"\",\"Buy\")","v":""}]
[null,null,null,""]
[null,null,null,""]
[null,null,null,""]
[null,null,null,""]
[null,null,null,""]
[null,null,null,""]
[null,null,null,""]
[null,null,null,""]
[null,null,null,""]
[null,null,null,""]
[null,null,null,""]
[null,null,null,""]
[null,null,null,""]
[null,null,null,""]
[null,null,null,""]
[null,null,null,""]
[null,null,null,""]
[null,null,null,""]
[null,null,null,""]
[null,null,null,""]
[null,null,null,""]
[null,null,null,""]
[null,null,null,""]
[null,null,null,""]
[null,null,null,""]
[null,null,null,""]
[null,null,null,""]
[null,null,null,""]
[null,null,null,""]
[null,null,null,""]
[null,null,null,""]
[null,null,null,""]
[null,null,null,""]
[null,null,null,""]
[null,null,null,""]
[null,null,null,""]
[null,null,null,""]
[null,null,null,""]
[null,null,null,""]
[null,null,null,""]
[null,null,null,""]
[null,null,null,""]
[null,null,null,""]
[null,null,null,""]
[null,null,null,""]
[null,null,null,""]
[null,null,null,""]
[null,null,null,""]
[null,null,null,""]
[null,null,null,""]
[null,null,null,""]
[null,null,null,""]
[null,null,null,""]
[null,null,null,""]
[null,null,null,""]
[null,null,null,""]
[null,null,null,""]
[null,null,null,""]
[null,null,null,""]
[null,null,null,""]
[null,null,null,""]
[null,null,null,""]
[null,null,null,""]
[null,null,null,{"$f":"IF(C520=\"\",\"\",\"Buy\")","v":""}]
[null,null,null,""]
[null,null,null,""]
[null,null,null,""]
[null,null,null,""]
[null,null,null,""]
[null,null,null,""]
[null,null,null,""]
[null,null,null,""]
[null,null,null,""]
[null,null,null,""]
[null,null,null,""]
[null,null,null,""]
[null,null,null,""]
[null,null,null,""]
[null,null,null,""]
[null,null,null,""]
[null,null,null,""]
[null,null,null,""]
[null,null,null,""]
[null,null,null,""]
[null,null,null,""]
[null,null,null,""]
[null,null,null,""]
[null,null,null,""]
[null,null,null,""]
[null,null,null,""]
[null,null,null,""]
[null,null,null,""]
[null,null,null,""]
[null,null,null,""]
[null,null,null,""]
[null,null,null,""]
[null,null,null,""]
[null,null,null,""]
[null,null,null,""]
[null,null,null,""]
[null,null,null,""]
[null,null,null,""]
[null,null,null,""]
[null,null,null,""]
[null,null,null,""]
[null,null,null,""]
[null,null,null,""]
[null,null,null,""]
[null,null,null,""]
[null,null,null,""]
[null,null,null,""]
[null,null,null,""]
[null,null,null,""]
[null,null,null,""]
[null,null,null,""]
[null,null,null,""]
[null,null,null,""]
[null,null,null,""]
[null,null,null,""]
[null,null,null,""]
[null,null,null,""]
[null,null,null,""]
[null,null,null,""]
[null,null,null,""]
[null,null,null,""]
[null,null,null,""]
[null,null,null,""]
[null,null,null,{"$f":"IF(C584=\"\",\"\",\"Buy\")","v":""}]
[null,null,null,""]
[null,null,null,""]
[null,null,null,""]
[null,null,null,""]
[null,null,null,""]
[null,null,null,""]
[null,null,null,""]
[null,null,null,""]
[null,null,null,""]
[null,null,null,""]
[null,null,null,""]
[null,null,null,""]
[null,null,null,""]
[null,null,null,""]
[null,null,null,""]
[null,null,null,""]
[null,null,null,""]
[null,null,null,""]
[null,null,null,""]
[null,null,null,""]
[null,null,null,""]
[null,null,null,""]
[null,null,null,""]
[null,null,null,""]
[null,null,null,""]
[null,null,null,""]
[null,null,null,""]
[null,null,null,""]
[null,null,null,""]
[null,null,null,""]
[null,null,null,""]
[null,null,null,""]
[null,null,null,""]
[null,null,null,""]
[null,null,null,""]
[null,null,null,""]
[null,null,null,""]
[null,null,null,""]
[null,null,null,""]
[null,null,null,""]
[null,null,null,""]
[null,null,null,""]
[null,null,null,""]
[null,null,null,""]
[null,null,null,""]
[null,null,null,""]
[null,null,null,""]
[null,null,null,""]
[null,null,null,""]
[null,null,null,""]
[null,null,null,""]
[null,null,null,""]
[null,null,null,""]
[null,null,null,""]
[null,null,null,""]
[null,null,null,""]
[null,null,null,""]
[null,null,null,""]
[null,null,null,""]
[null,null,null,""]
[null,null,null,""]
[null,null,null,""]
[null,null,null,""]
[null,null,null,{"$f":"IF(C648=\"\",\"\",\"Buy\")","v":""}]
[null,null,null,""]
[null,null,null,""]
[null,null,null,""]
[null,null,null,""]
[null,null,null,""]
[null,null,null,""]
[null,null,null,""]
[null,null,null,""]
[null,null,null,""]
[null,null,null,""]
[null,null,null,""]
[null,null,null,""]
[null,null,null,""]
[null,null,null,""]
[null,null,null,""]
[null,null,null,""]
[null,null,null,""]
[null,null,null,""]
[null,null,null,""]
[null,null,null,""]
[null,null,null,""]
[null,null,null,""]
[null,null,null,""]
[null,null,null,""]
[null,null,null,""]
[null,null,null,""]
[null,null,null,""]
[null,null,null,""]
[null,null,null,""]
[null,null,null,""]
[null,null,null,""]
[null,null,null,""]
[null,null,null,""]
[null,null,null,""]
[null,null,null,""]
[null,null,null,""]
[null,null,null,""]
[null,null,null,""]
[null,null,null,""]
[null,null,null,""]
[null,null,null,""]
[null,null,null,""]
[null,null,null,""]
[null,null,null,""]
[null,null,null,""]
[null,null,null,""]
[null,null,null,""]
[null,null,null,""]
[null,null,null,""]
[null,null,null,""]
[null,null,null,""]
[null,null,null,""]
[null,null,null,""]
[null,null,null,""]
[null,null,null,""]
[null,null,null,""]
[null,null,null,""]
[null,null,null,""]
[null,null,null,""]
[null,null,null,""]
[null,null,null,""]
[null,null,null,""]
[null,null,null,""]
[null,null,null,{"$f":"IF(C712=\"\",\"\",\"Buy\")","v":""}]
[null,null,null,""]
[null,null,null,""]
[null,null,null,""]
[null,null,null,""]
[null,null,null,""]
[null,null,null,""]
[null,null,null,""]
[null,null,null,""]
[null,null,null,""]
[null,null,null,""]
[null,null,null,""]
[null,null,null,""]
[null,null,null,""]
[null,null,null,""]
[null,null,null,""]
[null,null,null,""]
[null,null,null,""]
[null,null,null,""]
[null,null,null,""]
[null,null,null,""]
[null,null,null,""]
[null,null,null,""]
[null,null,null,""]
[null,null,null,""]
[null,null,null,""]
[null,null,null,""]
[null,null,null,""]
[null,null,null,""]
[null,null,null,""]
[null,null,null,""]
[null,null,null,""]
[null,null,null,""]
[null,null,null,""]
[null,null,null,""]
[null,null,null,""]
[null,null,null,""]
[null,null,null,""]
[null,null,null,""]
[null,null,null,""]
[null,null,null,""]
[null,null,null,""]
[null,null,null,""]
[null,null,null,""]
[null,null,null,""]
[null,null,null,""]
[null,null,null,""]
[null,null,null,""]
[null,null,null,""]
[null,null,null,""]
[null,null,null,""]
[null,null,null,""]
[null,null,null,""]
[null,null,null,""]
[null,null,null,""]
[null,null,null,""]
[null,null,null,""]
[null,null,null,""]
[null,null,null,""]
[null,null,null,""]
[null,null,null,""]
[null,null,null,""]
[null,null,null,""]
[null,null,null,""]
[null,null,null,{"$f":"IF(C776=\"\",\"\",\"Buy\")","v":""}]
[null,null,null,""]
[null,null,null,""]
[null,null,null,""]
[null,null,null,""]
[null,null,null,""]
[null,null,null,""]
[null,null,null,""]
[null,null,null,""]
[null,null,null,""]
[null,null,null,""]
[null,null,null,""]
[null,null,null,""]
[null,null,null,""]
[null,null,null,""]
[null,null,null,""]
[null,null,null,""]
[null,null,null,""]
[null,null,null,""]
[null,null,null,""]
[null,null,null,""]
[null,null,null,""]
[null,null,null,""]
[null,null,null,""]
[null,null,null,""]
[null,null,null,""]
[null,null,null,""]
[null,null,null,""]
[null,null,null,""]
[null,null,null,""]
[null,null,null,""]
[null,null,null,""]
[null,null,null,""]
[null,null,null,""]
[null,null,null,""]
[null,null,null,""]
[null,null,null,""]
[null,null,null,""]
[null,null,null,""]
[null,null,null,""]
[null,null,null,""]
[null,null,null,""]
[null,null,null,""]
[null,null,null,""]
[null,null,null,""]
[null,null,null,""]
[null,null,null,""]
[null,null,null,""]
[null,null,null,""]
[null,null,null,""]
[null,null,null,""]
[null,null,null,""]
[null,null,null,""]
[null,null,null,""]
[null,null,null,""]
[null,null,null,""]
[null,null,null,""]
[null,null,null,""]
[null,null,null,""]
[null,null,null,""]
[null,null,null,""]
[null,null,null,""]
[null,null,null,""]
[null,null,null,""]
[null,null,null,{"$f":"IF(C840=\"\",\"\",\"Buy\")","v":""}]
[null,null,null,""]
[null,null,null,""]
[null,null,null,""]
[null,null,null,""]
[null,null,null,""]
[null,null,null,""]
[null,null,null,""]
[null,null,null,""]
[null,null,null,""]
[null,null,null,""]
[null,null,null,""]
[null,null,null,""]
[null,null,null,""]
[null,null,null,""]
[null,null,null,""]
[null,null,null,""]
[null,null,null,""]
[null,null,null,""]
[null,null,null,""]
[null,null,null,""]
[null,null,null,""]
[null,null,null,""]
[null,null,null,""]
[null,null,null,""]
[null,null,null,""]
[null,null,null,""]
[null,null,null,""]
[null,null,null,""]
[null,null,null,""]
[null,null,null,""]
[null,null,null,""]
[null,null,null,""]
[null,null,null,""]
[null,null,null,""]
[null,null,null,""]
[null,null,null,""]
[null,null,null,""]
[null,null,null,""]
[null,null,null,""]
[null,null,null,""]
[null,null,null,""]
[null,null,null,""]
[null,null,null,""]
[null,null,null,""]
[null,null,null,""]
[null,null,null,""]
[null,null,null,""]
[null,null,null,""]
[null,null,null,""]
[null,null,null,""]
[null,null,null,""]
[null,null,null,""]
[null,null,null,""]
[null,null,null,""]
[null,null,null,""]
[null,null,null,""]
[null,null,null,""]
[null,null,null,""]
[null,null,null,""]
[null,null,null,""]
[null,null,null,""]
[null,null,null,""]
[null,null,null,""]
[null,null,null,{"$f":"IF(C904=\"\",\"\",\"Buy\")","v":""}]
[null,null,null,""]
[null,null,null,""]
[null,null,null,""]
[null,null,null,""]
[null,null,null,""]
[null,null,null,""]
[null,null,null,""]
[null,null,null,""]
[null,null,null,""]
[null,null,null,""]
[null,null,null,""]
[null,null,null,""]
[null,null,null,""]
[null,null,null,""]
[null,null,null,""]
[null,null,null,""]
[null,null,null,""]
[null,null,null,""]
[null,null,null,""]
[null,null,null,""]
[null,null,null,""]
[null,null,null,""]
[null,null,null,""]
[null,null,null,""]
[null,null,null,""]
[null,null,null,""]
[null,null,null,""]
[null,null,null,""]
[null,null,null,""]
[null,null,null,""]
[null,null,null,""]
[null,null,null,""]
[null,null,null,""]
[null,null,null,""]
[null,null,null,""]
[null,null,null,""]
[null,null,null,""]
[null,null,null,""]
[null,null,null,""]
[null,null,null,""]
[null,null,null,""]
[null,null,null,""]
[null,null,null,""]
[null,null,null,""]
[null,null,null,""]
[null,null,null,""]
[null,null,null,""]
[null,null,null,""]
[null,null,null,""]
[null,null,null,""]
[null,null,null,""]
[null,null,null,""]
[null,null,null,""]
[null,null,null,""]
[null,null,null,""]
[null,null,null,""]
[null,null,null,""]
[null,null,null,""]
[null,null,null,""]
[null,null,null,""]
[null,null,null,""]
[null,null,null,""]
[null,null,null,""]
[null,null,null,{"$f":"IF(C968=\"\",\"\",\"Buy\")","v":""}]
[null,null,null,""]
[null,null,null,""]
[null,null,null,""]
[null,null,null,""]
[null,null,null,""]
[null,null,null,""]
[null,null,null,""]
[null,null,null,""]
[null,null,null,""]
[null,null,null,""]
[null,null,null,""]
[null,null,null,""]
[null,null,null,""]
[null,null,null,""]
[null,null,null,""]
[null,null,null,""]
[null,null,null,""]
[null,null,null,""]
[null,null,null,""]
[null,null,null,""]
[null,null,null,""]
[null,null,null,""]
[null,null,null,""]
[null,null,null,""]
[null,null,null,""]
[null,null,null,""]
[null,null,null,""]
[null,null,null,""]
[null,null,null,""]
[null,null,null,""]
[null,null,null,""]

{"sheet":"26-Februar-2020_GER","index":3,"n_rows":1157,"n_cols":8,"rows_kept":1157,"cut":false,"hidden":false,"merged":[]}
["Fresenius Medical Care AG & Co. KGaA Aktienrückkauf 2019"]
[]
[null,null,"Handelsdatum","Anzahl zurückgekaufte Aktien","Durchschnittspreis\nin € je Aktie","Rückkaufsvolumen \nin €"]
[null,null,"2020-02-26",{"$f":"SUM(E7:E2000)","v":0},0,{"$f":"SUMPRODUCT(E7:E5000,F7:F5000)","v":0}]
[]
[null,"Handelsdatum","Handelszeit","Kauf / Verkauf","Nominale","Ausführungspreis","Währung","Handelsplatz"]
[null,{"$f":"$C$4","v":"2020-02-26"}]
[]
[]
[]
[]
[]
[]
[]
[]
[]
[]
[]
[]
[]
[]
[]
[]
[]
[]
[]
[]
[]
[]
[]
[]
[]
[]
[]
[]
[]
[]
[]
[]
[]
[]
[]
[]
[]
[]
[]
[]
[]
[]
[]
[]
[]
[]
[]
[]
[]
[]
[]
[]
[]
[]
[]
[]
[]
[]
[]
[]
[]
[]
[]
[]
[]
[]
[]
[]
[]
[]
[]
[]
[]
[]
[]
[]
[]
[]
[]
[]
[]
[]
[]
[]
[]
[]
[]
[]
[]
[]
[]
[]
[]
[]
[]
[]
[]
[]
[]
[]
[]
[]
[]
[]
[]
[]
[]
[]
[]
[]
[]
[]
[]
[]
[]
[]
[]
[]
[]
[]
[]
[]
[]
[]
[]
[]
[]
[]
[]
[]
[]
[]
[]
[]
[]
[]
[]
[]
[]
[]
[null,null,null,{"$f":"IF(C148=\"\",\"\",\"Buy\")","v":""}]
[null,null,null,""]
[null,null,null,""]
[null,null,null,""]
[null,null,null,""]
[null,null,null,""]
[null,null,null,""]
[null,null,null,""]
[null,null,null,""]
[null,null,null,""]
[null,null,null,""]
[null,null,null,""]
[null,null,null,""]
[null,null,null,""]
[null,null,null,""]
[null,null,null,""]
[null,null,null,""]
[null,null,null,""]
[null,null,null,""]
[null,null,null,""]
[null,null,null,""]
[null,null,null,""]
[null,null,null,""]
[null,null,null,""]
[null,null,null,""]
[null,null,null,""]
[null,null,null,""]
[null,null,null,""]
[null,null,null,""]
[null,null,null,""]
[null,null,null,""]
[null,null,null,""]
[null,null,null,""]
[null,null,null,""]
[null,null,null,"",null,null,null,{"$f":"IF(F182=\"\",\"\",\"XETRA\")","v":""}]
[null,null,null,"",null,null,null,""]
[null,null,null,"",null,null,null,""]
[null,null,null,"",null,null,null,""]
[null,null,null,"",null,null,null,""]
[null,null,null,"",null,null,null,""]
[null,null,null,"",null,null,null,""]
[null,null,null,"",null,null,null,""]
[null,null,null,"",null,null,null,""]
[null,null,null,"",null,null,null,""]
[null,null,null,"",null,null,null,""]
[null,null,null,"",null,null,null,""]
[null,null,null,"",null,null,null,""]
[null,null,null,"",null,null,null,""]
[null,null,null,"",null,null,null,""]
[null,null,null,"",null,null,null,""]
[null,null,null,"",null,null,null,""]
[null,null,null,"",null,null,null,""]
[null,null,null,{"$f":"IF(C200=\"\",\"\",\"Buy\")","v":""},null,null,null,{"$f":"IF(F200=\"\",\"\",\"XETRA\")","v":""}]
[null,null,null,"",null,null,null,""]
[null,null,null,"",null,null,null,""]
[null,null,null,"",null,null,null,""]
[null,null,null,"",null,null,null,""]
[null,null,null,"",null,null,null,""]
[null,null,null,"",null,null,null,""]
[null,null,null,"",null,null,null,""]
[null,null,null,"",null,null,null,""]
[null,null,null,"",null,null,null,""]
[null,null,null,"",null,null,null,""]
[null,null,null,"",null,null,null,""]
[null,null,null,"",null,null,null,""]
[null,null,null,"",null,null,null,""]
[null,null,null,"",null,null,null,""]
[null,null,null,"",null,null,null,""]
[null,null,null,"",null,null,null,""]
[null,null,null,"",null,null,null,""]
[null,null,null,"",null,null,null,""]
[null,null,null,"",null,null,null,""]
[null,null,null,"",null,null,null,""]
[null,null,null,"",null,null,null,""]
[null,null,null,"",null,null,null,""]
[null,null,null,"",null,null,null,""]
[null,null,null,"",null,null,null,""]
[null,null,null,"",null,null,null,""]
[null,null,null,"",null,null,null,""]
[null,null,null,"",null,null,null,""]
[null,null,null,"",null,null,null,""]
[null,null,null,"",null,null,null,""]
[null,null,null,"",null,null,null,""]
[null,null,null,"",null,null,null,""]
[null,null,null,"",null,null,null,""]
[null,null,null,"",null,null,null,""]
[null,null,null,"",null,null,null,""]
[null,null,null,"",null,null,null,""]
[null,null,null,"",null,null,null,""]
[null,null,null,"",null,null,null,""]
[null,null,null,"",null,null,null,""]
[null,null,null,"",null,null,null,""]
[null,null,null,"",null,null,null,""]
[null,null,null,"",null,null,null,""]
[null,null,null,"",null,null,null,""]
[null,null,null,"",null,null,null,""]
[null,null,null,"",null,null,null,""]
[null,null,null,"",null,null,null,""]
[null,null,null,"",null,null,null,""]
[null,null,null,"",null,null,null,""]
[null,null,null,"",null,null,null,""]
[null,null,null,"",null,null,null,""]
[null,null,null,"",null,null,null,""]
[null,null,null,"",null,null,null,""]
[null,null,null,"",null,null,null,""]
[null,null,null,"",null,null,null,""]
[null,null,null,"",null,null,null,""]
[null,null,null,"",null,null,null,""]
[null,null,null,"",null,null,null,""]
[null,null,null,"",null,null,null,""]
[null,null,null,"",null,null,null,""]
[null,null,null,"",null,null,null,""]
[null,null,null,"",null,null,null,""]
[null,null,null,"",null,null,null,""]
[null,null,null,"",null,null,null,""]
[null,null,null,"",null,null,null,""]
[null,null,null,{"$f":"IF(C264=\"\",\"\",\"Buy\")","v":""},null,null,null,{"$f":"IF(F264=\"\",\"\",\"XETRA\")","v":""}]
[null,null,null,"",null,null,null,""]
[null,null,null,"",null,null,null,""]
[null,null,null,"",null,null,null,""]
[null,null,null,"",null,null,null,""]
[null,null,null,"",null,null,null,""]
[null,null,null,"",null,null,null,""]
[null,null,null,"",null,null,null,""]
[null,null,null,"",null,null,null,""]
[null,null,null,"",null,null,null,""]
[null,null,null,"",null,null,null,""]
[null,null,null,"",null,null,null,""]
[null,null,null,"",null,null,null,""]
[null,null,null,"",null,null,null,""]
[null,null,null,"",null,null,null,""]
[null,null,null,"",null,null,null,""]
[null,null,null,"",null,null,null,""]
[null,null,null,"",null,null,null,""]
[null,null,null,"",null,null,null,""]
[null,null,null,"",null,null,null,""]
[null,null,null,"",null,null,null,""]
[null,null,null,"",null,null,null,""]
[null,null,null,"",null,null,null,""]
[null,null,null,"",null,null,null,""]
[null,null,null,"",null,null,null,""]
[null,null,null,"",null,null,null,""]
[null,null,null,"",null,null,null,""]
[null,null,null,"",null,null,null,""]
[null,null,null,"",null,null,null,""]
[null,null,null,"",null,null,null,""]
[null,null,null,"",null,null,null,""]
[null,null,null,"",null,null,null,""]
[null,null,null,"",null,null,null,""]
[null,null,null,"",null,null,null,""]
[null,null,null,"",null,null,null,""]
[null,null,null,""]
[null,null,null,"",null,null,{"$f":"IF(F300=\"\",\"\",\"EUR\")","v":""},""]
[null,null,null,"",null,null,"",""]
[null,null,null,"",null,null,"",""]
[null,null,null,"",null,null,"",""]
[null,null,null,"",null,null,"",""]
[null,null,null,"",null,null,"",""]
[null,null,null,"",null,null,"",""]
[null,null,null,"",null,null,"",""]
[null,null,null,"",null,null,"",""]
[null,null,null,"",null,null,"",""]
[null,null,null,"",null,null,"",""]
[null,null,null,"",null,null,"",""]
[null,null,null,"",null,null,"",""]
[null,null,null,"",null,null,"",""]
[null,null,null,"",null,null,"",""]
[null,null,null,"",null,null,"",""]
[null,null,null,"",null,null,"",""]
[null,null,null,"",null,null,"",""]
[null,null,null,"",null,null,"",""]
[null,null,null,"",null,null,"",""]
[null,null,null,"",null,null,"",""]
[null,null,null,"",null,null,"",""]
[null,null,null,"",null,null,"",""]
[null,null,null,"",null,null,"",""]
[null,null,null,"",null,null,"",""]
[null,null,null,"",null,null,"",""]
[null,null,null,"",null,null,"",""]
[null,null,null,"",null,null,"",""]
[null,null,null,{"$f":"IF(C328=\"\",\"\",\"Buy\")","v":""},null,null,{"$f":"IF(F328=\"\",\"\",\"EUR\")","v":""},{"$f":"IF(F328=\"\",\"\",\"XETRA\")","v":""}]
[null,null,null,"",null,null,"",""]
[null,null,null,"",null,null,"",""]
[null,null,null,"",null,null,"",""]
[null,null,null,"",null,null,"",""]
[null,null,null,"",null,null,"",""]
[null,null,null,"",null,null,"",""]
[null,null,null,"",null,null,"",""]
[null,null,null,"",null,null,"",""]
[null,null,null,"",null,null,"",""]
[null,null,null,"",null,null,"",""]
[null,null,null,"",null,null,"",""]
[null,null,null,"",null,null,"",""]
[null,null,null,"",null,null,"",""]
[null,null,null,"",null,null,"",""]
[null,null,null,"",null,null,"",""]
[null,null,null,"",null,null,"",""]
[null,null,null,"",null,null,"",""]
[null,null,null,"",null,null,"",""]
[null,null,null,"",null,null,"",""]
[null,null,null,"",null,null,"",""]
[null,null,null,"",null,null,"",""]
[null,null,null,"",null,null,"",""]
[null,null,null,"",null,null,"",""]
[null,null,null,"",null,null,"",""]
[null,null,null,"",null,null,"",""]
[null,null,null,"",null,null,"",""]
[null,null,null,"",null,null,"",""]
[null,null,null,"",null,null,"",""]
[null,null,null,"",null,null,"",""]
[null,null,null,"",null,null,"",""]
[null,null,null,"",null,null,"",""]
[null,null,null,"",null,null,"",""]
[null,null,null,"",null,null,"",""]
[null,null,null,"",null,null,"",""]
[null,null,null,"",null,null,"",""]
[null,null,null,"",null,null,"",""]
[null,null,null,"",null,null,"",""]
[null,null,null,"",null,null,"",""]
[null,null,null,"",null,null,"",""]
[null,null,null,"",null,null,"",""]
[null,null,null,"",null,null,"",""]
[null,null,null,"",null,null,"",""]
[null,null,null,"",null,null,"",""]
[null,null,null,"",null,null,"",""]
[null,null,null,"",null,null,"",""]
[null,null,null,"",null,null,"",""]
[null,null,null,"",null,null,"",""]
[null,null,null,"",null,null,"",""]
[null,null,null,"",null,null,"",""]
[null,null,null,"",null,null,"",""]
[null,null,null,"",null,null,"",""]
[null,null,null,"",null,null,"",""]
[null,null,null,"",null,null,"",""]
[null,null,null,"",null,null,"",""]
[null,null,null,"",null,null,"",""]
[null,null,null,"",null,null,"",""]
[null,null,null,"",null,null,"",""]
[null,null,null,"",null,null,"",""]
[null,null,null,"",null,null,"",""]
[null,null,null,"",null,null,"",""]
[null,null,null,"",null,null,"",""]
[null,null,null,"",null,null,"",""]
[null,null,null,"",null,null,"",""]
[null,null,null,{"$f":"IF(C392=\"\",\"\",\"Buy\")","v":""},null,null,{"$f":"IF(F392=\"\",\"\",\"EUR\")","v":""},{"$f":"IF(F392=\"\",\"\",\"XETRA\")","v":""}]
[null,null,null,"",null,null,"",""]
[null,null,null,"",null,null,"",""]
[null,null,null,"",null,null,"",""]
[null,null,null,"",null,null,"",""]
[null,null,null,"",null,null,"",""]
[null,null,null,"",null,null,"",""]
[null,null,null,"",null,null,"",""]
[null,null,null,"",null,null,"",""]
[null,null,null,"",null,null,"",""]
[null,null,null,"",null,null,"",""]
[null,null,null,"",null,null,"",""]
[null,null,null,"",null,null,"",""]
[null,null,null,"",null,null,"",""]
[null,null,null,"",null,null,"",""]
[null,null,null,"",null,null,"",""]
[null,null,null,"",null,null,"",""]
[null,null,null,"",null,null,"",""]
[null,null,null,"",null,null,"",""]
[null,null,null,"",null,null,"",""]
[null,null,null,"",null,null,"",""]
[null,null,null,"",null,null,"",""]
[null,null,null,"",null,null,"",""]
[null,null,null,"",null,null,"",""]
[null,null,null,"",null,null,"",""]
[null,null,null,"",null,null,"",""]
[null,null,null,"",null,null,"",""]
[null,null,null,"",null,null,"",""]
[null,null,null,"",null,null,"",""]
[null,null,null,"",null,null,"",""]
[null,null,null,"",null,null,"",""]
[null,null,null,"",null,null,"",""]
[null,null,null,"",null,null,"",""]
[null,null,null,"",null,null,"",""]
[null,null,null,"",null,null,"",""]
[null,null,null,"",null,null,"",""]
[null,null,null,"",null,null,"",""]
[null,null,null,"",null,null,"",""]
[null,null,null,"",null,null,"",""]
[null,null,null,"",null,null,"",""]
[null,null,null,"",null,null,"",""]
[null,null,null,"",null,null,"",""]
[null,null,null,"",null,null,"",""]
[null,null,null,"",null,null,"",""]
[null,null,null,"",null,null,"",""]
[null,null,null,"",null,null,"",""]
[null,null,null,"",null,null,"",""]
[null,null,null,"",null,null,"",""]
[null,null,null,"",null,null,"",""]
[null,null,null,"",null,null,"",""]
[null,null,null,"",null,null,"",""]
[null,null,null,"",null,null,"",""]
[null,null,null,"",null,null,"",""]
[null,null,null,"",null,null,"",""]
[null,null,null,"",null,null,"",""]
[null,null,null,"",null,null,"",""]
[null,null,null,"",null,null,"",""]
[null,null,null,"",null,null,"",""]
[null,null,null,"",null,null,"",""]
[null,null,null,"",null,null,"",""]
[null,null,null,"",null,null,"",""]
[null,null,null,"",null,null,"",""]
[null,null,null,"",null,null,"",""]
[null,null,null,"",null,null,"",""]
[null,null,null,{"$f":"IF(C456=\"\",\"\",\"Buy\")","v":""},null,null,{"$f":"IF(F456=\"\",\"\",\"EUR\")","v":""},{"$f":"IF(F456=\"\",\"\",\"XETRA\")","v":""}]
[null,null,null,"",null,null,"",""]
[null,null,null,"",null,null,"",""]
[null,null,null,"",null,null,"",""]
[null,null,null,"",null,null,"",""]
[null,null,null,"",null,null,"",""]
[null,null,null,"",null,null,"",""]
[null,null,null,"",null,null,"",""]
[null,null,null,"",null,null,"",""]
[null,null,null,"",null,null,"",""]
[null,null,null,"",null,null,"",""]
[null,null,null,"",null,null,"",""]
[null,null,null,"",null,null,"",""]
[null,null,null,"",null,null,"",""]
[null,null,null,"",null,null,"",""]
[null,null,null,"",null,null,"",""]
[null,null,null,"",null,null,"",""]
[null,null,null,"",null,null,"",""]
[null,null,null,"",null,null,"",""]
[null,null,null,"",null,null,"",""]
[null,null,null,"",null,null,"",""]
[null,null,null,"",null,null,"",""]
[null,null,null,"",null,null,"",""]
[null,null,null,"",null,null,"",""]
[null,null,null,"",null,null,"",""]
[null,null,null,"",null,null,"",""]
[null,null,null,"",null,null,"",""]
[null,null,null,"",null,null,"",""]
[null,null,null,"",null,null,"",""]
[null,null,null,"",null,null,"",""]
[null,null,null,"",null,null,"",""]
[null,null,null,"",null,null,"",""]
[null,null,null,"",null,null,"",""]
[null,null,null,"",null,null,"",""]
[null,null,null,"",null,null,"",""]
[null,null,null,"",null,null,"",""]
[null,null,null,"",null,null,"",""]
[null,null,null,"",null,null,"",""]
[null,null,null,"",null,null,"",""]
[null,null,null,"",null,null,"",""]
[null,null,null,"",null,null,"",""]
[null,null,null,"",null,null,"",""]
[null,null,null,"",null,null,"",""]
[null,null,null,"",null,null,"",""]
[null,null,null,"",null,null,"",""]
[null,null,null,"",null,null,"",""]
[null,null,null,"",null,null,"",""]
[null,null,null,"",null,null,"",""]
[null,null,null,"",null,null,"",""]
[null,null,null,"",null,null,"",""]
[null,null,null,"",null,null,"",""]
[null,null,null,"",null,null,"",""]
[null,null,null,"",null,null,"",""]
[null,null,null,"",null,null,"",""]
[null,null,null,"",null,null,"",""]
[null,null,null,"",null,null,"",""]
[null,null,null,"",null,null,"",""]
[null,null,null,"",null,null,"",""]
[null,null,null,"",null,null,"",""]
[null,null,null,"",null,null,"",""]
[null,null,null,"",null,null,"",""]
[null,null,null,"",null,null,"",""]
[null,null,null,"",null,null,"",""]
[null,null,null,"",null,null,"",""]
[null,null,null,{"$f":"IF(C520=\"\",\"\",\"Buy\")","v":""},null,null,{"$f":"IF(F520=\"\",\"\",\"EUR\")","v":""},{"$f":"IF(F520=\"\",\"\",\"XETRA\")","v":""}]
[null,null,null,"",null,null,"",""]
[null,null,null,"",null,null,"",""]
[null,null,null,"",null,null,"",""]
[null,null,null,"",null,null,"",""]
[null,null,null,"",null,null,"",""]
[null,null,null,"",null,null,"",""]
[null,null,null,"",null,null,"",""]
[null,null,null,"",null,null,"",""]
[null,null,null,"",null,null,"",""]
[null,null,null,"",null,null,"",""]
[null,null,null,"",null,null,"",""]
[null,null,null,"",null,null,"",""]
[null,null,null,"",null,null,"",""]
[null,null,null,"",null,null,"",""]
[null,null,null,"",null,null,"",""]
[null,null,null,"",null,null,"",""]
[null,null,null,"",null,null,"",""]
[null,null,null,"",null,null,"",""]
[null,null,null,"",null,null,"",""]
[null,null,null,"",null,null,"",""]
[null,null,null,"",null,null,"",""]
[null,null,null,"",null,null,"",""]
[null,null,null,"",null,null,"",""]
[null,null,null,"",null,null,"",""]
[null,null,null,"",null,null,"",""]
[null,null,null,"",null,null,"",""]
[null,null,null,"",null,null,"",""]
[null,null,null,"",null,null,"",""]
[null,null,null,"",null,null,"",""]
[null,null,null,"",null,null,"",""]
[null,null,null,"",null,null,"",""]
[null,null,null,"",null,null,"",""]
[null,null,null,"",null,null,"",""]
[null,null,null,"",null,null,"",""]
[null,null,null,"",null,null,"",""]
[null,null,null,"",null,null,"",""]
[null,null,null,"",null,null,"",""]
[null,null,null,"",null,null,"",""]
[null,null,null,"",null,null,"",""]
[null,null,null,"",null,null,"",""]
[null,null,null,"",null,null,"",""]
[null,null,null,"",null,null,"",""]
[null,null,null,"",null,null,"",""]
[null,null,null,"",null,null,"",""]
[null,null,null,"",null,null,"",""]
[null,null,null,"",null,null,"",""]
[null,null,null,"",null,null,"",""]
[null,null,null,"",null,null,"",""]
[null,null,null,"",null,null,"",""]
[null,null,null,"",null,null,"",""]
[null,null,null,"",null,null,"",""]
[null,null,null,"",null,null,"",""]
[null,null,null,"",null,null,"",""]
[null,null,null,"",null,null,"",""]
[null,null,null,"",null,null,"",""]
[null,null,null,"",null,null,"",""]
[null,null,null,"",null,null,"",""]
[null,null,null,"",null,null,"",""]
[null,null,null,"",null,null,"",""]
[null,null,null,"",null,null,"",""]
[null,null,null,"",null,null,"",""]
[null,null,null,"",null,null,"",""]
[null,null,null,"",null,null,"",""]
[null,null,null,{"$f":"IF(C584=\"\",\"\",\"Buy\")","v":""},null,null,{"$f":"IF(F584=\"\",\"\",\"EUR\")","v":""},{"$f":"IF(F584=\"\",\"\",\"XETRA\")","v":""}]
[null,null,null,"",null,null,"",""]
[null,null,null,"",null,null,"",""]
[null,null,null,"",null,null,"",""]
[null,null,null,"",null,null,"",""]
[null,null,null,"",null,null,"",""]
[null,null,null,"",null,null,"",""]
[null,null,null,"",null,null,"",""]
[null,null,null,"",null,null,"",""]
[null,null,null,"",null,null,"",""]
[null,null,null,"",null,null,"",""]
[null,null,null,"",null,null,"",""]
[null,null,null,"",null,null,"",""]
[null,null,null,"",null,null,"",""]
[null,null,null,"",null,null,"",""]
[null,null,null,"",null,null,"",""]
[null,null,null,"",null,null,"",""]
[null,null,null,"",null,null,"",""]
[null,null,null,"",null,null,"",""]
[null,null,null,"",null,null,"",""]
[null,null,null,"",null,null,"",""]
[null,null,null,"",null,null,"",""]
[null,null,null,"",null,null,"",""]
[null,null,null,"",null,null,"",""]
[null,null,null,"",null,null,"",""]
[null,null,null,"",null,null,"",""]
[null,null,null,"",null,null,"",""]
[null,null,null,"",null,null,"",""]
[null,null,null,"",null,null,"",""]
[null,null,null,"",null,null,"",""]
[null,null,null,"",null,null,"",""]
[null,null,null,"",null,null,"",""]
[null,null,null,"",null,null,"",""]
[null,null,null,"",null,null,"",""]
[null,null,null,"",null,null,"",""]
[null,null,null,"",null,null,"",""]
[null,null,null,"",null,null,"",""]
[null,null,null,"",null,null,"",""]
[null,null,null,"",null,null,"",""]
[null,null,null,"",null,null,"",""]
[null,null,null,"",null,null,"",""]
[null,null,null,"",null,null,"",""]
[null,null,null,"",null,null,"",""]
[null,null,null,"",null,null,"",""]
[null,null,null,"",null,null,"",""]
[null,null,null,"",null,null,"",""]
[null,null,null,"",null,null,"",""]
[null,null,null,"",null,null,"",""]
[null,null,null,"",null,null,"",""]
[null,null,null,"",null,null,"",""]
[null,null,null,"",null,null,"",""]
[null,null,null,"",null,null,"",""]
[null,null,null,"",null,null,"",""]
[null,null,null,"",null,null,"",""]
[null,null,null,"",null,null,"",""]
[null,null,null,"",null,null,"",""]
[null,null,null,"",null,null,"",""]
[null,null,null,"",null,null,"",""]
[null,null,null,"",null,null,"",""]
[null,null,null,"",null,null,"",""]
[null,null,null,"",null,null,"",""]
[null,null,null,"",null,null,"",""]
[null,null,null,"",null,null,"",""]
[null,null,null,"",null,null,"",""]
[null,null,null,{"$f":"IF(C648=\"\",\"\",\"Buy\")","v":""},null,null,{"$f":"IF(F648=\"\",\"\",\"EUR\")","v":""},{"$f":"IF(F648=\"\",\"\",\"XETRA\")","v":""}]
[null,null,null,"",null,null,"",""]
[null,null,null,"",null,null,"",""]
[null,null,null,"",null,null,"",""]
[null,null,null,"",null,null,"",""]
[null,null,null,"",null,null,"",""]
[null,null,null,"",null,null,"",""]
[null,null,null,"",null,null,"",""]
[null,null,null,"",null,null,"",""]
[null,null,null,"",null,null,"",""]
[null,null,null,"",null,null,"",""]
[null,null,null,"",null,null,"",""]
[null,null,null,"",null,null,"",""]
[null,null,null,"",null,null,"",""]
[null,null,null,"",null,null,"",""]
[null,null,null,"",null,null,"",""]
[null,null,null,"",null,null,"",""]
[null,null,null,"",null,null,"",""]
[null,null,null,"",null,null,"",""]
[null,null,null,"",null,null,"",""]
[null,null,null,"",null,null,"",""]
[null,null,null,"",null,null,"",""]
[null,null,null,"",null,null,"",""]
[null,null,null,"",null,null,"",""]
[null,null,null,"",null,null,"",""]
[null,null,null,"",null,null,"",""]
[null,null,null,"",null,null,"",""]
[null,null,null,"",null,null,"",""]
[null,null,null,"",null,null,"",""]
[null,null,null,"",null,null,"",""]
[null,null,null,"",null,null,"",""]
[null,null,null,"",null,null,"",""]
[null,null,null,"",null,null,"",""]
[null,null,null,"",null,null,"",""]
[null,null,null,"",null,null,"",""]
[null,null,null,"",null,null,"",""]
[null,null,null,"",null,null,"",""]
[null,null,null,"",null,null,"",""]
[null,null,null,"",null,null,"",""]
[null,null,null,"",null,null,"",""]
[null,null,null,"",null,null,"",""]
[null,null,null,"",null,null,"",""]
[null,null,null,"",null,null,"",""]
[null,null,null,"",null,null,"",""]
[null,null,null,"",null,null,"",""]
[null,null,null,"",null,null,"",""]
[null,null,null,"",null,null,"",""]
[null,null,null,"",null,null,"",""]
[null,null,null,"",null,null,"",""]
[null,null,null,"",null,null,"",""]
[null,null,null,"",null,null,"",""]
[null,null,null,"",null,null,"",""]
[null,null,null,"",null,null,"",""]
[null,null,null,"",null,null,"",""]
[null,null,null,"",null,null,"",""]
[null,null,null,"",null,null,"",""]
[null,null,null,"",null,null,"",""]
[null,null,null,"",null,null,"",""]
[null,null,null,"",null,null,"",""]
[null,null,null,"",null,null,"",""]
[null,null,null,"",null,null,"",""]
[null,null,null,"",null,null,"",""]
[null,null,null,"",null,null,"",""]
[null,null,null,"",null,null,"",""]
[null,null,null,{"$f":"IF(C712=\"\",\"\",\"Buy\")","v":""},null,null,{"$f":"IF(F712=\"\",\"\",\"EUR\")","v":""},{"$f":"IF(F712=\"\",\"\",\"XETRA\")","v":""}]
[null,null,null,"",null,null,"",""]
[null,null,null,"",null,null,"",""]
[null,null,null,"",null,null,"",""]
[null,null,null,"",null,null,"",""]
[null,null,null,"",null,null,"",""]
[null,null,null,"",null,null,"",""]
[null,null,null,"",null,null,"",""]
[null,null,null,"",null,null,"",""]
[null,null,null,"",null,null,"",""]
[null,null,null,"",null,null,"",""]
[null,null,null,"",null,null,"",""]
[null,null,null,"",null,null,"",""]
[null,null,null,"",null,null,"",""]
[null,null,null,"",null,null,"",""]
[null,null,null,"",null,null,"",""]
[null,null,null,"",null,null,"",""]
[null,null,null,"",null,null,"",""]
[null,null,null,"",null,null,"",""]
[null,null,null,"",null,null,"",""]
[null,null,null,"",null,null,"",""]
[null,null,null,"",null,null,"",""]
[null,null,null,"",null,null,"",""]
[null,null,null,"",null,null,"",""]
[null,null,null,"",null,null,"",""]
[null,null,null,"",null,null,"",""]
[null,null,null,"",null,null,"",""]
[null,null,null,"",null,null,"",""]
[null,null,null,"",null,null,"",""]
[null,null,null,"",null,null,"",""]
[null,null,null,"",null,null,"",""]
[null,null,null,"",null,null,"",""]
[null,null,null,"",null,null,"",""]
[null,null,null,"",null,null,"",""]
[null,null,null,"",null,null,"",""]
[null,null,null,"",null,null,"",""]
[null,null,null,"",null,null,"",""]
[null,null,null,"",null,null,"",""]
[null,null,null,"",null,null,"",""]
[null,null,null,"",null,null,"",""]
[null,null,null,"",null,null,"",""]
[null,null,null,"",null,null,"",""]
[null,null,null,"",null,null,"",""]
[null,null,null,"",null,null,"",""]
[null,null,null,"",null,null,"",""]
[null,null,null,"",null,null,"",""]
[null,null,null,"",null,null,"",""]
[null,null,null,"",null,null,"",""]
[null,null,null,"",null,null,"",""]
[null,null,null,"",null,null,"",""]
[null,null,null,"",null,null,"",""]
[null,null,null,"",null,null,"",""]
[null,null,null,"",null,null,"",""]
[null,null,null,"",null,null,"",""]
[null,null,null,"",null,null,"",""]
[null,null,null,"",null,null,"",""]
[null,null,null,"",null,null,"",""]
[null,null,null,"",null,null,"",""]
[null,null,null,"",null,null,"",""]
[null,null,null,"",null,null,"",""]
[null,null,null,"",null,null,"",""]
[null,null,null,"",null,null,"",""]
[null,null,null,"",null,null,"",""]
[null,null,null,"",null,null,"",""]
[null,null,null,{"$f":"IF(C776=\"\",\"\",\"Buy\")","v":""},null,null,{"$f":"IF(F776=\"\",\"\",\"EUR\")","v":""},{"$f":"IF(F776=\"\",\"\",\"XETRA\")","v":""}]
[null,null,null,"",null,null,"",""]
[null,null,null,"",null,null,"",""]
[null,null,null,"",null,null,"",""]
[null,null,null,"",null,null,"",""]
[null,null,null,"",null,null,"",""]
[null,null,null,"",null,null,"",""]
[null,null,null,"",null,null,"",""]
[null,null,null,"",null,null,"",""]
[null,null,null,"",null,null,"",""]
[null,null,null,"",null,null,"",""]
[null,null,null,"",null,null,"",""]
[null,null,null,"",null,null,"",""]
[null,null,null,"",null,null,"",""]
[null,null,null,"",null,null,"",""]
[null,null,null,"",null,null,"",""]
[null,null,null,"",null,null,"",""]
[null,null,null,"",null,null,"",""]
[null,null,null,"",null,null,"",""]
[null,null,null,"",null,null,"",""]
[null,null,null,"",null,null,"",""]
[null,null,null,"",null,null,"",""]
[null,null,null,"",null,null,"",""]
[null,null,null,"",null,null,"",""]
[null,null,null,"",null,null,"",""]
[null,null,null,"",null,null,"",""]
[null,null,null,"",null,null,"",""]
[null,null,null,"",null,null,"",""]
[null,null,null,"",null,null,"",""]
[null,null,null,"",null,null,"",""]
[null,null,null,"",null,null,"",""]
[null,null,null,"",null,null,"",""]
[null,null,null,"",null,null,"",""]
[null,null,null,"",null,null,"",""]
[null,null,null,"",null,null,"",""]
[null,null,null,"",null,null,"",""]
[null,null,null,"",null,null,"",""]
[null,null,null,"",null,null,"",""]
[null,null,null,"",null,null,"",""]
[null,null,null,"",null,null,"",""]
[null,null,null,"",null,null,"",""]
[null,null,null,"",null,null,"",""]
[null,null,null,"",null,null,"",""]
[null,null,null,"",null,null,"",""]
[null,null,null,"",null,null,"",""]
[null,null,null,"",null,null,"",""]
[null,null,null,"",null,null,"",""]
[null,null,null,"",null,null,"",""]
[null,null,null,"",null,null,"",""]
[null,null,null,"",null,null,"",""]
[null,null,null,"",null,null,"",""]
[null,null,null,"",null,null,"",""]
[null,null,null,"",null,null,"",""]
[null,null,null,"",null,null,"",""]
[null,null,null,"",null,null,"",""]
[null,null,null,"",null,null,"",""]
[null,null,null,"",null,null,"",""]
[null,null,null,"",null,null,"",""]
[null,null,null,"",null,null,"",""]
[null,null,null,"",null,null,"",""]
[null,null,null,"",null,null,"",""]
[null,null,null,"",null,null,"",""]
[null,null,null,"",null,null,"",""]
[null,null,null,"",null,null,"",""]
[null,null,null,{"$f":"IF(C840=\"\",\"\",\"Buy\")","v":""},null,null,{"$f":"IF(F840=\"\",\"\",\"EUR\")","v":""},{"$f":"IF(F840=\"\",\"\",\"XETRA\")","v":""}]
[null,null,null,"",null,null,"",""]
[null,null,null,"",null,null,"",""]
[null,null,null,"",null,null,"",""]
[null,null,null,"",null,null,"",""]
[null,null,null,"",null,null,"",""]
[null,null,null,"",null,null,"",""]
[null,null,null,"",null,null,"",""]
[null,null,null,"",null,null,"",""]
[null,null,null,"",null,null,"",""]
[null,null,null,"",null,null,"",""]
[null,null,null,"",null,null,"",""]
[null,null,null,"",null,null,"",""]
[null,null,null,"",null,null,"",""]
[null,null,null,"",null,null,"",""]
[null,null,null,"",null,null,"",""]
[null,null,null,"",null,null,"",""]
[null,null,null,"",null,null,"",""]
[null,null,null,"",null,null,"",""]
[null,null,null,"",null,null,"",""]
[null,null,null,"",null,null,"",""]
[null,null,null,"",null,null,"",""]
[null,null,null,"",null,null,"",""]
[null,null,null,"",null,null,"",""]
[null,null,null,"",null,null,"",""]
[null,null,null,"",null,null,"",""]
[null,null,null,"",null,null,"",""]
[null,null,null,"",null,null,"",""]
[null,null,null,"",null,null,"",""]
[null,null,null,"",null,null,"",""]
[null,null,null,"",null,null,"",""]
[null,null,null,"",null,null,"",""]
[null,null,null,"",null,null,"",""]
[null,null,null,"",null,null,"",""]
[null,null,null,"",null,null,"",""]
[null,null,null,"",null,null,"",""]
[null,null,null,"",null,null,"",""]
[null,null,null,"",null,null,"",""]
[null,null,null,"",null,null,"",""]
[null,null,null,"",null,null,"",""]
[null,null,null,"",null,null,"",""]
[null,null,null,"",null,null,"",""]
[null,null,null,"",null,null,"",""]
[null,null,null,"",null,null,"",""]
[null,null,null,"",null,null,"",""]
[null,null,null,"",null,null,"",""]
[null,null,null,"",null,null,"",""]
[null,null,null,"",null,null,"",""]
[null,null,null,"",null,null,"",""]
[null,null,null,"",null,null,"",""]
[null,null,null,"",null,null,"",""]
[null,null,null,"",null,null,"",""]
[null,null,null,"",null,null,"",""]
[null,null,null,"",null,null,"",""]
[null,null,null,"",null,null,"",""]
[null,null,null,"",null,null,"",""]
[null,null,null,"",null,null,"",""]
[null,null,null,"",null,null,"",""]
[null,null,null,"",null,null,"",""]
[null,null,null,"",null,null,"",""]
[null,null,null,"",null,null,"",""]
[null,null,null,"",null,null,"",""]
[null,null,null,"",null,null,"",""]
[null,null,null,"",null,null,"",""]
[null,null,null,{"$f":"IF(C904=\"\",\"\",\"Buy\")","v":""},null,null,{"$f":"IF(F904=\"\",\"\",\"EUR\")","v":""},{"$f":"IF(F904=\"\",\"\",\"XETRA\")","v":""}]
[null,null,null,"",null,null,"",""]
[null,null,null,"",null,null,"",""]
[null,null,null,"",null,null,"",""]
[null,null,null,"",null,null,"",""]
[null,null,null,"",null,null,"",""]
[null,null,null,"",null,null,"",""]
[null,null,null,"",null,null,"",""]
[null,null,null,"",null,null,"",""]
[null,null,null,"",null,null,"",""]
[null,null,null,"",null,null,"",""]
[null,null,null,"",null,null,"",""]
[null,null,null,"",null,null,"",""]
[null,null,null,"",null,null,"",""]
[null,null,null,"",null,null,"",""]
[null,null,null,"",null,null,"",""]
[null,null,null,"",null,null,"",""]
[null,null,null,"",null,null,"",""]
[null,null,null,"",null,null,"",""]
[null,null,null,"",null,null,"",""]
[null,null,null,"",null,null,"",""]
[null,null,null,"",null,null,"",""]
[null,null,null,"",null,null,"",""]
[null,null,null,"",null,null,"",""]
[null,null,null,"",null,null,"",""]
[null,null,null,"",null,null,"",""]
[null,null,null,"",null,null,"",""]
[null,null,null,"",null,null,"",""]
[null,null,null,"",null,null,"",""]
[null,null,null,"",null,null,"",""]
[null,null,null,"",null,null,"",""]
[null,null,null,"",null,null,"",""]
[null,null,null,"",null,null,"",""]
[null,null,null,"",null,null,"",""]
[null,null,null,"",null,null,"",""]
[null,null,null,"",null,null,"",""]
[null,null,null,"",null,null,"",""]
[null,null,null,"",null,null,"",""]
[null,null,null,"",null,null,"",""]
[null,null,null,"",null,null,"",""]
[null,null,null,"",null,null,"",""]
[null,null,null,"",null,null,"",""]
[null,null,null,"",null,null,"",""]
[null,null,null,"",null,null,"",""]
[null,null,null,"",null,null,"",""]
[null,null,null,"",null,null,"",""]
[null,null,null,"",null,null,"",""]
[null,null,null,"",null,null,"",""]
[null,null,null,"",null,null,"",""]
[null,null,null,"",null,null,"",""]
[null,null,null,"",null,null,"",""]
[null,null,null,"",null,null,"",""]
[null,null,null,"",null,null,"",""]
[null,null,null,"",null,null,"",""]
[null,null,null,"",null,null,"",""]
[null,null,null,"",null,null,"",""]
[null,null,null,"",null,null,"",""]
[null,null,null,"",null,null,"",""]
[null,null,null,"",null,null,"",""]
[null,null,null,"",null,null,"",""]
[null,null,null,"",null,null,"",""]
[null,null,null,"",null,null,"",""]
[null,null,null,"",null,null,"",""]
[null,null,null,"",null,null,"",""]
[null,null,null,{"$f":"IF(C968=\"\",\"\",\"Buy\")","v":""},null,null,{"$f":"IF(F968=\"\",\"\",\"EUR\")","v":""},{"$f":"IF(F968=\"\",\"\",\"XETRA\")","v":""}]
[null,null,null,"",null,null,"",""]
[null,null,null,"",null,null,"",""]
[null,null,null,"",null,null,"",""]
[null,null,null,"",null,null,"",""]
[null,null,null,"",null,null,"",""]
[null,null,null,"",null,null,"",""]
[null,null,null,"",null,null,"",""]
[null,null,null,"",null,null,"",""]
[null,null,null,"",null,null,"",""]
[null,null,null,"",null,null,"",""]
[null,null,null,"",null,null,"",""]
[null,null,null,"",null,null,"",""]
[null,null,null,"",null,null,"",""]
[null,null,null,"",null,null,"",""]
[null,null,null,"",null,null,"",""]
[null,null,null,"",null,null,"",""]
[null,null,null,"",null,null,"",""]
[null,null,null,"",null,null,"",""]
[null,null,null,"",null,null,"",""]
[null,null,null,"",null,null,"",""]
[null,null,null,"",null,null,"",""]
[null,null,null,"",null,null,"",""]
[null,null,null,"",null,null,"",""]
[null,null,null,"",null,null,"",""]
[null,null,null,"",null,null,"",""]
[null,null,null,"",null,null,"",""]
[null,null,null,"",null,null,"",""]
[null,null,null,"",null,null,"",""]
[null,null,null,"",null,null,"",""]
[null,null,null,"",null,null,"",""]
[null,null,null,"",null,null,"",""]
[null,null,null,null,null,null,{"$f":"IF(F1000=\"\",\"\",\"EUR\")","v":""},{"$f":"IF(F1000=\"\",\"\",\"XETRA\")","v":""}]
[null,null,null,null,null,null,"",""]
[null,null,null,null,null,null,"",""]
[null,null,null,null,null,null,"",""]
[null,null,null,null,null,null,"",""]
[null,null,null,null,null,null,"",""]
[null,null,null,null,null,null,"",""]
[null,null,null,null,null,null,"",""]
[null,null,null,null,null,null,"",""]
[null,null,null,null,null,null,"",""]
[null,null,null,null,null,null,"",""]
[null,null,null,null,null,null,"",""]
[null,null,null,null,null,null,"",""]
[null,null,null,null,null,null,"",""]
[null,null,null,null,null,null,"",""]
[null,null,null,null,null,null,"",""]
[null,null,null,null,null,null,"",""]
[null,null,null,null,null,null,"",""]
[null,null,null,null,null,null,"",""]
[null,null,null,null,null,null,"",""]
[null,null,null,null,null,null,"",""]
[null,null,null,null,null,null,"",""]
[null,null,null,null,null,null,"",""]
[null,null,null,null,null,null,"",""]
[null,null,null,null,null,null,"",""]
[null,null,null,null,null,null,"",""]
[null,null,null,null,null,null,"",""]
[null,null,null,null,null,null,"",""]
[null,null,null,null,null,null,"",""]
[null,null,null,null,null,null,"",""]
[null,null,null,null,null,null,"",""]
[null,null,null,null,null,null,"",""]
[null,null,null,null,null,null,{"$f":"IF(F1032=\"\",\"\",\"EUR\")","v":""},{"$f":"IF(F1032=\"\",\"\",\"XETRA\")","v":""}]
[null,null,null,null,null,null,"",""]
[null,null,null,null,null,null,"",""]
[null,null,null,null,null,null,"",""]
[null,null,null,null,null,null,"",""]
[null,null,null,null,null,null,"",""]
[null,null,null,null,null,null,"",""]
[null,null,null,null,null,null,"",""]
[null,null,null,null,null,null,"",""]
[null,null,null,null,null,null,"",""]
[null,null,null,null,null,null,"",""]
[null,null,null,null,null,null,"",""]
[null,null,null,null,null,null,"",""]
[null,null,null,null,null,null,"",""]
[null,null,null,null,null,null,"",""]
[null,null,null,null,null,null,"",""]
[null,null,null,null,null,null,"",""]
[null,null,null,null,null,null,"",""]
[null,null,null,null,null,null,"",""]
[null,null,null,null,null,null,"",""]
[null,null,null,null,null,null,"",""]
[null,null,null,null,null,null,"",""]
[null,null,null,null,null,null,"",""]
[null,null,null,null,null,null,"",""]
[null,null,null,null,null,null,"",""]
[null,null,null,null,null,null,"",""]
[null,null,null,null,null,null,"",""]
[null,null,null,null,null,null,"",""]
[null,null,null,null,null,null,"",""]
[null,null,null,null,null,null,"",""]
[null,null,null,null,null,null,"",""]
[null,null,null,null,null,null,"",""]
[null,null,null,null,null,null,"",""]
[null,null,null,null,null,null,"",""]
[null,null,null,null,null,null,"",""]
[null,null,null,null,null,null,"",""]
[null,null,null,null,null,null,"",""]
[null,null,null,null,null,null,"",""]
[null,null,null,null,null,null,"",""]
[null,null,null,null,null,null,"",""]
[null,null,null,null,null,null,"",""]
[null,null,null,null,null,null,"",""]
[null,null,null,null,null,null,"",""]
[null,null,null,null,null,null,"",""]
[null,null,null,null,null,null,"",""]
[null,null,null,null,null,null,"",""]
[null,null,null,null,null,null,"",""]
[null,null,null,null,null,null,"",""]
[null,null,null,null,null,null,"",""]
[null,null,null,null,null,null,"",""]
[null,null,null,null,null,null,"",""]
[null,null,null,null,null,null,"",""]
[null,null,null,null,null,null,"",""]
[null,null,null,null,null,null,"",""]
[null,null,null,null,null,null,"",""]
[null,null,null,null,null,null,"",""]
[null,null,null,null,null,null,"",""]
[null,null,null,null,null,null,"",""]
[null,null,null,null,null,null,"",""]
[null,null,null,null,null,null,"",""]
[null,null,null,null,null,null,"",""]
[null,null,null,null,null,null,"",""]
[null,null,null,null,null,null,"",""]
[null,null,null,null,null,null,"",""]
[null,null,null,null,null,null,{"$f":"IF(F1096=\"\",\"\",\"EUR\")","v":""},{"$f":"IF(F1096=\"\",\"\",\"XETRA\")","v":""}]
[null,null,null,null,null,null,"",""]
[null,null,null,null,null,null,"",""]
[null,null,null,null,null,null,"",""]
[null,null,null,null,null,null,"",""]
[null,null,null,null,null,null,"",""]
[null,null,null,null,null,null,"",""]
[null,null,null,null,null,null,"",""]
[null,null,null,null,null,null,"",""]
[null,null,null,null,null,null,"",""]
[null,null,null,null,null,null,"",""]
[null,null,null,null,null,null,"",""]
[null,null,null,null,null,null,"",""]
[null,null,null,null,null,null,"",""]
[null,null,null,null,null,null,"",""]
[null,null,null,null,null,null,"",""]
[null,null,null,null,null,null,"",""]
[null,null,null,null,null,null,"",""]
[null,null,null,null,null,null,"",""]
[null,null,null,null,null,null,"",""]
[null,null,null,null,null,null,"",""]
[null,null,null,null,null,null,"",""]
[null,null,null,null,null,null,"",""]
[null,null,null,null,null,null,"",""]
[null,null,null,null,null,null,"",""]
[null,null,null,null,null,null,"",""]
[null,null,null,null,null,null,"",""]
[null,null,null,null,null,null,"",""]
[null,null,null,null,null,null,"",""]
[null,null,null,null,null,null,"",""]
[null,null,null,null,null,null,"",""]
[null,null,null,null,null,null,"",""]
[null,null,null,null,null,null,"",""]
[null,null,null,null,null,null,"",""]
[null,null,null,null,null,null,"",""]
[null,null,null,null,null,null,"",""]
[null,null,null,null,null,null,"",""]
[null,null,null,null,null,null,"",""]
[null,null,null,null,null,null,"",""]
[null,null,null,null,null,null,"",""]
[null,null,null,null,null,null,"",""]
[null,null,null,null,null,null,"",""]
[null,null,null,null,null,null,"",""]
[null,null,null,null,null,null,"",""]
[null,null,null,null,null,null,"",""]
[null,null,null,null,null,null,"",""]
[null,null,null,null,null,null,"",""]
[null,null,null,null,null,null,"",""]
[null,null,null,null,null,null,"",""]
[null,null,null,null,null,null,"",""]
[null,null,null,null,null,null,"",""]
[null,null,null,null,null,null,"",""]
[null,null,null,null,null,null,"",""]
[null,null,null,null,null,null,"",""]
[null,null,null,null,null,null,"",""]
[null,null,null,null,null,null,"",""]
[null,null,null,null,null,null,"",""]
[null,null,null,null,null,null,"",""]
[null,null,null,null,null,null,"",""]
[null,null,null,null,null,null,"",""]
[null,null,null,null,null,null,"",""]
[null,null,null,null,null,null,"",""]

{"sheet":"27-Februar-2020_GER","index":4,"n_rows":47,"n_cols":8,"rows_kept":47,"cut":false,"hidden":false,"merged":[]}
["Fresenius Medical Care AG & Co. KGaA Aktienrückkauf 2019"]
[]
[null,null,"Handelsdatum","Anzahl zurückgekaufte Aktien","Durchschnittspreis\nin € je Aktie","Rückkaufsvolumen \nin €"]
[null,null,"2020-02-27",{"$f":"SUM(E7:E2000)","v":5398},{"$f":"F4/D4","v":70.589266394961072},{"$f":"SUMPRODUCT(E7:E5000,F7:F5000)","v":381040.85999999987}]
[]
[null,"Handelsdatum","Handelszeit","Kauf / Verkauf","Nominale","Ausführungspreis","Währung","Handelsplatz"]
[null,{"$f":"+C4","v":"2020-02-27"},"09:20:23.183647 CET","Kauf",157,71.22,"EUR","XETA"]
[null,null,"09:21:16.230680 CET","Kauf",150,71.260000000000005,"EUR","XETA"]
[null,null,"09:39:44.496304 CET","Kauf",148,70.819999999999993,"EUR","XETA"]
[null,null,"09:51:46.672037 CET","Kauf",151,71.14,"EUR","XETA"]
[null,null,"10:02:26.144744 CET","Kauf",137,71.3,"EUR","XETA"]
[null,null,"10:17:55.753443 CET","Kauf",188,71.02,"EUR","XETA"]
[null,null,"10:33:52.312355 CET","Kauf",148,71.5,"EUR","XETA"]
[null,null,"10:44:35.928454 CET","Kauf",159,71.319999999999993,"EUR","XETA"]
[null,null,"11:01:42.845324 CET","Kauf",155,71.52,"EUR","XETA"]
[null,null,"11:13:20.27137 CET","Kauf",143,71.260000000000005,"EUR","XETA"]
[null,null,"11:29:15.107499 CET","Kauf",149,71,"EUR","XETA"]
[null,null,"11:44:56.226546 CET","Kauf",162,71.08,"EUR","XETA"]
[null,null,"12:05:13.261654 CET","Kauf",147,70.72,"EUR","XETA"]
[null,null,"12:25:07.372479 CET","Kauf",123,70.94,"EUR","XETA"]
[null,null,"12:25:07.372479 CET","Kauf",13,70.94,"EUR","XETA"]
[null,null,"12:45:02.302085 CET","Kauf",144,71.040000000000006,"EUR","XETA"]
[null,null,"13:03:16.63707 CET","Kauf",167,70.72,"EUR","XETA"]
[null,null,"13:23:13.752150 CET","Kauf",152,70.62,"EUR","XETA"]
[null,null,"13:58:28.936419 CET","Kauf",186,70.28,"EUR","XETA"]
[null,null,"14:09:52.798037 CET","Kauf",148,69.94,"EUR","XETA"]
[null,null,"14:34:11.729371 CET","Kauf",145,70.14,"EUR","XETA"]
[null,null,"14:48:07.120973 CET","Kauf",164,70.12,"EUR","XETA"]
[null,null,"15:07:19.378773 CET","Kauf",163,69.819999999999993,"EUR","XETA"]
[null,null,"15:21:43.247810 CET","Kauf",138,69.88,"EUR","XETA"]
[null,null,"15:31:52.852936 CET","Kauf",138,69.7,"EUR","XETA"]
[null,null,"15:42:02.745188 CET","Kauf",33,70.099999999999994,"EUR","XETA"]
[null,null,"15:42:02.745188 CET","Kauf",128,70.099999999999994,"EUR","XETA"]
[null,null,"15:53:17.595261 CET","Kauf",41,69.8,"EUR","XETA"]
[null,null,"15:53:17.595261 CET","Kauf",16,69.8,"EUR","XETA"]
[null,null,"15:55:01.115136 CET","Kauf",159,70.08,"EUR","XETA"]
[null,null,"16:07:45.847407 CET","Kauf",154,70.08,"EUR","XETA"]
[null,null,"16:16:11.881099 CET","Kauf",147,70.06,"EUR","XETA"]
[null,null,"16:26:18.359291 CET","Kauf",171,69.8,"EUR","XETA"]
[null,null,"16:37:49.59285 CET","Kauf",145,69.900000000000006,"EUR","XETA"]
[null,null,"16:48:22.145949 CET","Kauf",148,70.319999999999993,"EUR","XETA"]
[null,null,"16:48:22.145949 CET","Kauf",14,70.319999999999993,"EUR","XETA"]
[null,null,"17:00:21.662208 CET","Kauf",147,70.66,"EUR","XETA"]
[null,null,"17:16:41.356934 CET","Kauf",175,70.64,"EUR","XETA"]
[null,null,"17:25:30.90526 CET","Kauf",98,70.48,"EUR","XETA"]
[null,null,"17:26:41.871219 CET","Kauf",91,70.540000000000006,"EUR","XETA"]
[null,null,"17:29:45.75001 CET","Kauf",56,70.44,"EUR","XETA"]

{"sheet":"CIQ_LinkingNames","index":5,"n_rows":0,"n_cols":0,"rows_kept":0,"cut":false,"hidden":true,"merged":[]}

{"sheet":"28-Ferbuar-2020_GER","index":6,"n_rows":489,"n_cols":8,"rows_kept":489,"cut":false,"hidden":false,"merged":[]}
["Fresenius Medical Care AG & Co. KGaA Aktienrückkauf 2019"]
[]
[null,null,"Handelsdatum","Anzahl zurückgekaufte Aktien","Durchschnittspreis\nin € je Aktie","Rückkaufsvolumen \nin €"]
[null,null,"2020-02-28",{"$f":"SUM(E7:E1999)","v":0},0,{"$f":"SUMPRODUCT(E7:E4999,F7:F4999)","v":0}]
[]
[null,"Handelsdatum","Handelszeit","Kauf / Verkauf","Nominale","Ausführungspreis","Währung","Handelsplatz"]
[null,{"$f":"C4","v":"2020-02-28"},null,{"$f":"IF(C7=\"\",\"\",\"Buy\")","v":""}]
[null,null,null,{"$f":"IF(C8=\"\",\"\",\"Buy\")","v":""}]
[null,null,null,""]
[null,null,null,""]
[null,null,null,""]
[null,null,null,""]
[null,null,null,""]
[null,null,null,""]
[null,null,null,""]
[null,null,null,""]
[null,null,null,""]
[null,null,null,""]
[null,null,null,""]
[null,null,null,""]
[null,null,null,""]
[null,null,null,""]
[null,null,null,""]
[null,null,null,""]
[null,null,null,""]
[null,null,null,""]
[null,null,null,""]
[null,null,null,""]
[null,null,null,""]
[null,null,null,""]
[null,null,null,""]
[null,null,null,""]
[null,null,null,""]
[null,null,null,""]
[null,null,null,""]
[null,null,null,""]
[null,null,null,""]
[null,null,null,""]
[null,null,null,""]
[null,null,null,""]
[null,null,null,""]
[null,null,null,""]
[null,null,null,""]
[null,null,null,""]
[null,null,null,""]
[null,null,null,""]
[null,null,null,""]
[null,null,null,""]
[null,null,null,""]
[null,null,null,""]
[null,null,null,""]
[null,null,null,""]
[null,null,null,""]
[null,null,null,""]
[null,null,null,""]
[null,null,null,""]
[null,null,null,""]
[null,null,null,""]
[null,null,null,""]
[null,null,null,""]
[null,null,null,""]
[null,null,null,""]
[null,null,null,""]
[null,null,null,""]
[null,null,null,""]
[null,null,null,""]
[null,null,null,""]
[null,null,null,""]
[null,null,null,""]
[null,null,null,""]
[null,null,null,""]
[null,null,null,{"$f":"IF(C72=\"\",\"\",\"Buy\")","v":""}]
[null,null,null,""]
[null,null,null,""]
[null,null,null,""]
[null,null,null,""]
[null,null,null,""]
[null,null,null,""]
[null,null,null,""]
[null,null,null,""]
[null,null,null,""]
[null,null,null,""]
[null,null,null,""]
[null,null,null,""]
[null,null,null,""]
[null,null,null,""]
[null,null,null,""]
[null,null,null,""]
[null,null,null,""]
[null,null,null,""]
[null,null,null,""]
[null,null,null,""]
[null,null,null,""]
[null,null,null,""]
[null,null,null,""]
[null,null,null,""]
[null,null,null,""]
[null,null,null,""]
[null,null,null,""]
[null,null,null,""]
[null,null,null,""]
[null,null,null,""]
[null,null,null,""]
[null,null,null,""]
[null,null,null,""]
[null,null,null,""]
[null,null,null,""]
[null,null,null,""]
[null,null,null,""]
[null,null,null,""]
[null,null,null,""]
[null,null,null,""]
[null,null,null,""]
[null,null,null,""]
[null,null,null,""]
[null,null,null,""]
[null,null,null,""]
[null,null,null,""]
[null,null,null,""]
[null,null,null,""]
[null,null,null,""]
[null,null,null,""]
[null,null,null,""]
[null,null,null,""]
[null,null,null,""]
[null,null,null,""]
[null,null,null,""]
[null,null,null,""]
[null,null,null,""]
[null,null,null,""]
[null,null,null,""]
[null,null,null,""]
[null,null,null,""]
[null,null,null,""]
[null,null,null,""]
[null,null,null,{"$f":"IF(C136=\"\",\"\",\"Buy\")","v":""}]
[null,null,null,""]
[null,null,null,""]
[null,null,null,""]
[null,null,null,""]
[null,null,null,""]
[null,null,null,""]
[null,null,null,""]
[null,null,null,""]
[null,null,null,""]
[null,null,null,""]
[null,null,null,""]
[null,null,null,""]
[null,null,null,""]
[null,null,null,""]
[null,null,null,""]
[null,null,null,""]
[null,null,null,""]
[null,null,null,""]
[null,null,null,""]
[null,null,null,""]
[null,null,null,""]
[null,null,null,""]
[null,null,null,""]
[null,null,null,""]
[null,null,null,""]
[null,null,null,""]
[null,null,null,""]
[null,null,null,""]
[null,null,null,""]
[null,null,null,""]
[null,null,null,""]
[null,null,null,""]
[null,null,null,""]
[null,null,null,""]
[null,null,null,""]
[null,null,null,""]
[null,null,null,""]
[null,null,null,""]
[null,null,null,""]
[null,null,null,""]
[null,null,null,""]
[null,null,null,""]
[null,null,null,""]
[null,null,null,""]
[null,null,null,""]
[null,null,null,""]
[null,null,null,""]
[null,null,null,""]
[null,null,null,""]
[null,null,null,""]
[null,null,null,""]
[null,null,null,""]
[null,null,null,""]
[null,null,null,""]
[null,null,null,""]
[null,null,null,""]
[null,null,null,""]
[null,null,null,""]
[null,null,null,""]
[null,null,null,""]
[null,null,null,""]
[null,null,null,""]
[null,null,null,""]
[null,null,null,{"$f":"IF(C200=\"\",\"\",\"Buy\")","v":""}]
[null,null,null,""]
[null,null,null,""]
[null,null,null,""]
[null,null,null,""]
[null,null,null,""]
[null,null,null,""]
[null,null,null,""]
[null,null,null,""]
[null,null,null,""]
[null,null,null,""]
[null,null,null,""]
[null,null,null,""]
[null,null,null,""]
[null,null,null,""]
[null,null,null,""]
[null,null,null,""]
[null,null,null,""]
[null,null,null,""]
[null,null,null,""]
[null,null,null,""]
[null,null,null,""]
[null,null,null,""]
[null,null,null,""]
[null,null,null,""]
[null,null,null,""]
[null,null,null,""]
[null,null,null,""]
[null,null,null,""]
[null,null,null,""]
[null,null,null,""]
[null,null,null,""]
[null,null,null,""]
[null,null,null,""]
[null,null,null,""]
[null,null,null,""]
[null,null,null,""]
[null,null,null,""]
[null,null,null,""]
[null,null,null,""]
[null,null,null,""]
[null,null,null,""]
[null,null,null,""]
[null,null,null,""]
[null,null,null,""]
[null,null,null,""]
[null,null,null,""]
[null,null,null,""]
[null,null,null,""]
[null,null,null,""]
[null,null,null,""]
[null,null,null,""]
[null,null,null,""]
[null,null,null,""]
[null,null,null,""]
[null,null,null,""]
[null,null,null,""]
[null,null,null,""]
[null,null,null,""]
[null,null,null,""]
[null,null,null,""]
[null,null,null,""]
[null,null,null,""]
[null,null,null,""]
[null,null,null,{"$f":"IF(C264=\"\",\"\",\"Buy\")","v":""}]
[null,null,null,""]
[null,null,null,""]
[null,null,null,""]
[null,null,null,""]
[null,null,null,""]
[null,null,null,""]
[null,null,null,""]
[null,null,null,""]
[null,null,null,""]
[null,null,null,""]
[null,null,null,""]
[null,null,null,""]
[null,null,null,""]
[null,null,null,""]
[null,null,null,""]
[null,null,null,""]
[null,null,null,""]
[null,null,null,""]
[null,null,null,""]
[null,null,null,""]
[null,null,null,""]
[null,null,null,""]
[null,null,null,""]
[null,null,null,""]
[null,null,null,""]
[null,null,null,""]
[null,null,null,""]
[null,null,null,""]
[null,null,null,""]
[null,null,null,""]
[null,null,null,""]
[null,null,null,""]
[null,null,null,""]
[null,null,null,""]
[null,null,null,""]
[null,null,null,""]
[null,null,null,""]
[null,null,null,""]
[null,null,null,""]
[null,null,null,""]
[null,null,null,""]
[null,null,null,""]
[null,null,null,""]
[null,null,null,""]
[null,null,null,""]
[null,null,null,""]
[null,null,null,""]
[null,null,null,""]
[null,null,null,""]
[null,null,null,""]
[null,null,null,""]
[null,null,null,""]
[null,null,null,""]
[null,null,null,""]
[null,null,null,""]
[null,null,null,""]
[null,null,null,""]
[null,null,null,""]
[null,null,null,""]
[null,null,null,""]
[null,null,null,""]
[null,null,null,""]
[null,null,null,""]
[null,null,null,{"$f":"IF(C328=\"\",\"\",\"Buy\")","v":""}]
[null,null,null,""]
[null,null,null,""]
[null,null,null,""]
[null,null,null,""]
[null,null,null,""]
[null,null,null,""]
[null,null,null,""]
[null,null,null,""]
[null,null,null,""]
[null,null,null,""]
[null,null,null,""]
[null,null,null,""]
[null,null,null,""]
[null,null,null,""]
[null,null,null,""]
[null,null,null,""]
[null,null,null,""]
[null,null,null,""]
[null,null,null,""]
[null,null,null,""]
[null,null,null,""]
[null,null,null,""]
[null,null,null,""]
[null,null,null,""]
[null,null,null,""]
[null,null,null,""]
[null,null,null,""]
[null,null,null,""]
[null,null,null,""]
[null,null,null,""]
[null,null,null,""]
[null,null,null,""]
[null,null,null,""]
[null,null,null,""]
[null,null,null,""]
[null,null,null,""]
[null,null,null,""]
[null,null,null,""]
[null,null,null,""]
[null,null,null,""]
[null,null,null,""]
[null,null,null,""]
[null,null,null,""]
[null,null,null,""]
[null,null,null,""]
[null,null,null,""]
[null,null,null,""]
[null,null,null,""]
[null,null,null,""]
[null,null,null,""]
[null,null,null,""]
[null,null,null,""]
[null,null,null,""]
[null,null,null,""]
[null,null,null,""]
[null,null,null,""]
[null,null,null,""]
[null,null,null,""]
[null,null,null,""]
[null,null,null,""]
[null,null,null,""]
[null,null,null,""]
[null,null,null,""]
[null,null,null,{"$f":"IF(C392=\"\",\"\",\"Buy\")","v":""}]
[null,null,null,""]
[null,null,null,""]
[null,null,null,""]
[null,null,null,""]
[null,null,null,""]
[null,null,null,""]
[null,null,null,""]
[null,null,null,""]
[null,null,null,""]
[null,null,null,""]
[null,null,null,""]
[null,null,null,""]
[null,null,null,""]
[null,null,null,""]
[null,null,null,""]
[null,null,null,""]
[null,null,null,""]
[null,null,null,""]
[null,null,null,""]
[null,null,null,""]
[null,null,null,""]
[null,null,null,""]
[null,null,null,""]
[null,null,null,""]
[null,null,null,""]
[null,null,null,""]
[null,null,null,""]
[null,null,null,""]
[null,null,null,""]
[null,null,null,""]
[null,null,null,""]
[null,null,null,""]
[null,null,null,""]
[null,null,null,""]
[null,null,null,""]
[null,null,null,""]
[null,null,null,""]
[null,null,null,""]
[null,null,null,""]
[null,null,null,""]
[null,null,null,""]
[null,null,null,""]
[null,null,null,""]
[null,null,null,""]
[null,null,null,""]
[null,null,null,""]
[null,null,null,""]
[null,null,null,""]
[null,null,null,""]
[null,null,null,""]
[null,null,null,""]
[null,null,null,""]
[null,null,null,""]
[null,null,null,""]
[null,null,null,""]
[null,null,null,""]
[null,null,null,""]
[null,null,null,""]
[null,null,null,""]
[null,null,null,""]
[null,null,null,""]
[null,null,null,""]
[null,null,null,""]
[null,null,null,{"$f":"IF(C456=\"\",\"\",\"Buy\")","v":""}]
[null,null,null,""]
[null,null,null,""]
[null,null,null,""]
[null,null,null,""]
[null,null,null,""]
[null,null,null,""]
[null,null,null,""]
[null,null,null,""]
[null,null,null,""]
[null,null,null,""]
[null,null,null,""]
[null,null,null,""]
[null,null,null,""]
[null,null,null,""]
[null,null,null,""]
[null,null,null,""]
[null,null,null,""]
[null,null,null,""]
[null,null,null,""]
[null,null,null,""]
[null,null,null,""]
[null,null,null,""]
[null,null,null,""]
[null,null,null,""]
[null,null,null,""]
[null,null,null,""]
[null,null,null,""]
[null,null,null,""]
[null,null,null,""]
[null,null,null,""]
[null,null,null,""]
[null,null,null,""]
[null,null,null,{"$f":"IF(C489=\"\",\"\",\"Buy\")","v":""}]